{"text_format":"1","workbook":"xlsx","n_sheets":7,"sheets":["1- Mode d'emploi","2- Article 3","3- Article 4","4- Article 5","5- Résultats Article 4","6- Résultats Article 5","7- Résultat Global"],"not_rendered":{"charts":5,"images":1,"macros":1,"external_links":3,"defined_names":9,"comments":0,"pivot_tables":0},"unopened":[],"bounds":{"document_bytes":16777216,"sheet_cells":100000,"rows_first":2000,"rows_last":500,"rows_between":2000,"halvings":0,"cell_chars":16384,"cell_head_chars":4096},"cells_cut":0,"cells_raw":0,"read":"whole","date_system":"1900"}

{"sheet":"1- Mode d'emploi","index":0,"n_rows":32,"n_cols":14,"rows_kept":32,"cut":false,"hidden":false,"merged":[[20,7,20,8],[18,7,18,8],[17,7,17,8],[16,7,16,8],[6,12,7,12],[9,0,12,8],[15,0,15,3],[15,4,15,8],[19,0,19,1],[19,7,19,8],[20,0,20,1],[16,0,16,1],[17,0,17,1],[18,0,18,1],[1,2,1,8],[2,2,2,8],[3,0,3,2],[3,3,3,8],[5,0,5,2],[4,0,4,2],[4,3,4,8],[5,4,5,6]]}
["Document d'autodiagnostic en référence à la norme ISO 31000:2009"]
[null,null,"   Autodiagnostic  de la norme ISO 31000:2009"]
[]
["Etablissement:",null,null,"-"]
[" Responsable du SMQ: ",null,null,"-"]
[" Contact du Responsable du SMQ:",null,null," @: ",null,null,null," Tél:",null,null,null,null,"Sommaire Dynamique de la Grille d'évaluation"]
[null,null,null,null,null,null,null,null,null,null,null,null,"Ce sommaire dynamique vous dirigera directement au niveau du chapitre de l'ISO 31000:2009sur lequel vous désirez travailler. "]
["Manuel d'emploi"]
[]
["Objectif :\nCet outil permet aux différentes organisations de type PME/TPI de se positionner par rapport à leurs besoins et capacités en matière du management du risque et ainsi évaluer la Respect de ce système de management selon les conseils de la norme ISO 31000:2009. Cet outil sert aussi de cahier de bord dans lequel il est possible d’évaluer et de commenter la progression du système de management du risque. Grâce à cet outil vous aurez plus de visibilité afin d’émettre des actions correctives mais aussi préventives dans une démarche d’amélioration continue.\n(Cet outil n’est pas un outil de certification)\n\n \nPrésentation des éléments :\nUn sommaire dynamique permet de se rendre directement au volet voulu. Cet outil Excel est constitué de plusieurs onglets :\nLe diagnostic : Chaque chapitre est traité indépendamment dans un onglet.\nLes résultats du chapitre : Une fiche synthétique regroupant les données émises lors du diagnostic sur chaque chapitre, schématisées sous forme de graphes radar.\nLe résultat global : Tous les résultats sont réunis sur cet onglet en donnant une vision sur la globalité du système de management du risque.\n"]
[]
[]
[]
[]
["Échelles d'évaluation utilisées paramétrables"]
["Niveaux de VÉRACITÉ quant à la RÉALISATION \ndes actions associées aux conseils de la norme",null,null,null,"LIBELLÉS des niveaux de Respect \ndes ARTICLES de la norme "]
["Niveaux de VÉRACITÉ",null,"Choix","Taux de \nVÉRACITÉ","Taux moyen \nMinimal","Taux moyen\nMaximal","Niveaux de Respect","Explicites \ndes niveaux de Respect"]
["L'action n'est pas réalisée ou alors de manière très aléatoire.",null,"FAUX",0,0,0.14000000000000001,"Insuffisant","Il est nécessaire de formaliser les pratiques"]
["L'action est réalisée quelques fois de manière informelle.",null,"Plutôt Faux",0.3,0.15,0.49,"Informel","Il est nécessaire de pérenniser la bonne exécution des pratiques"]
["L'action est formalisée et réalisée de manière assez convaincante.",null,"Plutôt Vrai",0.7,0.5,0.74,"Acceptable","Il est nécessaire d'améliorer les pratiques"]
["L'action formalisée est réalisée, améliorée et tracée.",null,"VRAI",1,0.75,1,"Convaincant","BRAVO ! Maintenez et communiquez vos résultats"]
[null,null,null,null,null,null,null,null,null,null,null,"Choix proposé","Taux du choix","Libellé"]
[null,null,null,null,null,null,null,null,null,null,null,{"$f":"C17","v":"Choix"},null,"Libellé du critère quand il sera choisi"]
[null,null,null,null,null,null,null,null,null,null,null,{"$f":"C18","v":"FAUX"},{"$f":"D18","v":0},{"$f":"A18","v":"L'action n'est pas réalisée ou alors de manière très aléatoire."}]
[null,null,null,null,null,null,null,null,null,null,null,"Plutôt Faux",{"$f":"D19","v":0.3},{"$f":"A19","v":"L'action est réalisée quelques fois de manière informelle."}]
[null,null,null,null,null,null,null,null,null,null,null,"Plutôt Vrai",0.7,"L'action est formalisée et réalisée de manière assez convaincante."]
[null,null,null,null,null,null,null,null,null,null,null,"VRAI",1,"L'action formalisée est réalisée, améliorée et tracée."]
[null,null,null,null,null,null,null,null,null,null,null,null,{"$f":"D4","v":"-"}]
[null,null,null,null,null,null,null,null,null,null,null,null,{"$f":"D5","v":"-"}]
[null,null,null,null,null,null,null,null,null,null,null,null,{"$f":"D6","v":" @: "}]
[]
[null,null,null,null,null,null,null,null,null,{"$f":"L24","v":"FAUX"}]

{"sheet":"2- Article 3","index":1,"n_rows":8,"n_cols":6,"rows_kept":8,"cut":false,"hidden":false,"merged":[[6,0,6,1],[6,2,6,3],[0,0,0,5],[7,0,7,5],[1,1,1,5],[2,0,2,1],[2,2,2,5],[3,0,3,1],[3,2,3,4],[3,5,6,5],[4,0,4,1],[4,2,4,4],[5,0,5,1],[5,2,5,4]]}
[{"$f":"'1- Mode d''emploi'!A1","v":"Document d'autodiagnostic en référence à la norme ISO 31000:2009"}]
[null,"  Article 3: Les 11 principes du management du risque"]
["Etablissement :",null,{"$f":"'3- Article 4'!C3:F3","v":"-"}]
["Date de l'autodiagnostic (jj/mm/aaaa) : ",null,null,null,null,"Signature de l'évaluateur :\n\n\n\n\n"]
["Responsable de l'évaluation : "]
["L'équipe d'évaluation:"]
["Contact de la responsable : ",null,"Tél:",null,"@"]
["Pour établir un système de management de risque efficace au sein d'un organisme, il est indispensable de respecter les 11 principes ci-dessous, cités préalablement dans l'Article 3 de la norme ISO 31000:20009."]

{"sheet":"3- Article 4","index":2,"n_rows":88,"n_cols":15,"rows_kept":88,"cut":false,"hidden":false,"merged":[[84,4,84,5],[68,4,68,5],[69,4,69,5],[76,4,76,5],[78,4,78,5],[32,4,32,5],[38,4,38,5],[45,4,45,5],[53,4,53,5],[60,4,60,5],[1,1,1,5],[2,0,2,1],[2,2,2,5],[3,0,3,1],[3,2,3,4],[3,5,6,5],[4,0,4,1],[4,2,4,4],[5,0,5,1],[5,2,5,4],[6,0,6,1],[6,2,6,3],[9,4,9,5],[10,4,10,5],[20,4,20,5],[21,4,21,5],[24,4,24,5]]}
[{"$f":"'1- Mode d''emploi'!A1","v":"Document d'autodiagnostic en référence à la norme ISO 31000:2009"}]
[null,"  Autodiagnostic sur l'Article 4: Cadre Organisationnel"]
["Etablissement :",null,{"$f":"'1- Mode d''emploi'!$M$28","v":"-"},null,null,null,null,null,"Choix réalisé","% Véracité du choix","Pondération de chaque exigence","Taux de CONFORMITÉ pondéré sur l'exigence"]
["Date de l'autodiagnostic (jj/mm/aaaa) : ",null,null,null,null,"Signature de l'évaluateur :\n\n\n\n\n"]
["Responsable de l'évaluation : "]
["L'équipe d'évaluation:"]
["Contact de la responsable : ",null,"Tél:",null,"@"]
[]
["Réf.","Items des articles de la norme","Evaluations","Taux %","Libellés des évaluations","Modes de preuve et commentaires"]
["Art .4","Cadre Organisationnel",{"$f":"O10","v":"Insuffisant"},{"$f":"N10","v":0},{"$f":"IF('3- Article 4'!D10<='1- Mode d''emploi'!$F$18,'1- Mode d''emploi'!$H$18,IF(D10<='1- Mode d''emploi'!$F$19,'1- Mode d''emploi'!$H$19,IF(D10<'1- Mode d''emploi'!$E$21,'1- Mode d''emploi'!$H$20,'1- Mode d''emploi'!$H$21)))","v":"Il est nécessaire de formaliser les pratiques"},{"$f":"IF(E10<='1- Mode d''emploi'!$F$18,'1- Mode d''emploi'!$G$18,IF(E10<='1- Mode d''emploi'!$F$19,'1- Mode d''emploi'!$G$19,IF(E10<='1- Mode d''emploi'!$F$20,'1- Mode d''emploi'!$G$20,'1- Mode d''emploi'!$G$21)))","v":"Convaincant"},null,null,"Article",null,null,null,null,{"$f":"L11*K11+L21*K21+L69*K69+L79*K79+L85*K85","v":0},{"$f":"IF(N10<='1- Mode d''emploi'!$F$18,'1- Mode d''emploi'!$G$18,IF(N10<='1- Mode d''emploi'!$F$19,'1- Mode d''emploi'!$G$19,IF(N10<'1- Mode d''emploi'!$E$21,'1- Mode d''emploi'!$G$20,'1- Mode d''emploi'!$G$21)))","v":"Insuffisant"}]
["4.2","Mandat et engagement",{"$f":"M11","v":"Insuffisant"},{"$f":"L11","v":0},{"$f":"IF('3- Article 4'!D11<='1- Mode d''emploi'!$F$18,'1- Mode d''emploi'!$H$18,IF(D11<='1- Mode d''emploi'!$F$19,'1- Mode d''emploi'!$H$19,IF(D11<='1- Mode d''emploi'!$F$20,'1- Mode d''emploi'!$H$20,'1- Mode d''emploi'!$H$21)))","v":"Il est nécessaire de formaliser les pratiques"},{"$f":"IF(E11<='1- Mode d''emploi'!$F$18,'1- Mode d''emploi'!$G$18,IF(E11<='1- Mode d''emploi'!$F$19,'1- Mode d''emploi'!$G$19,IF(E11<='1- Mode d''emploi'!$F$20,'1- Mode d''emploi'!$G$20,'1- Mode d''emploi'!$G$21)))","v":"Convaincant"},null,null,"Sous-article",null,{"$f":"1/5","v":0.2},{"$f":"SUM(L12:L20)","v":0},{"$f":"IF(L11<='1- Mode d''emploi'!$F$18,'1- Mode d''emploi'!$G$18,IF(L11<='1- Mode d''emploi'!$F$19,'1- Mode d''emploi'!$G$19,IF(L11<='1- Mode d''emploi'!$F$20,'1- Mode d''emploi'!$G$20,'1- Mode d''emploi'!$G$21)))","v":"Insuffisant"}]
[1,"La direction définit et approuve la politique de management du risque","Choix",{"$f":"J12","v":0},{"$f":"VLOOKUP(C12,'1- Mode d''emploi'!$L$23:$N$27,3)","v":"Libellé du critère quand il sera choisi"},null,null,null,{"$f":"C12","v":"Choix"},{"$f":"VLOOKUP(I12,'1- Mode d''emploi'!$L$23:$M$27,2)","v":0},{"$f":"1/COUNTA($B$12:$B$20)","v":0.1111111111111111},{"$f":"IFERROR(K12*J12,\"\")","v":0}]
[2,"La direction s'assure que la culture de l'organisme et sa politique de management du risque sont en phase","Choix",{"$f":"J13","v":0},{"$f":"VLOOKUP(C13,'1- Mode d''emploi'!$L$23:$N$27,3)","v":"Libellé du critère quand il sera choisi"},null,null,null,{"$f":"C13","v":"Choix"},{"$f":"VLOOKUP(I13,'1- Mode d''emploi'!$L$23:$M$27,2)","v":0},{"$f":"1/COUNTA($B$12:$B$20)","v":0.1111111111111111},{"$f":"IFERROR(K13*J13,\"\")","v":0}]
[3,"La direction détermine des indicateurs de performance du management du risque cohérents avec les indicateurs de performance de l'organisme","Choix",0,{"$f":"VLOOKUP(C14,'1- Mode d''emploi'!$L$23:$N$27,3)","v":"Libellé du critère quand il sera choisi"},null,null,null,"Choix",{"$f":"VLOOKUP(I14,'1- Mode d''emploi'!$L$23:$M$27,2)","v":0},0.1111111111111111,{"$f":"IFERROR(K14*J14,\"\")","v":0}]
[4,"La direction aligne les objectifs du management du risque sur les objectifs et stratégies de l'organisme","Choix",0,{"$f":"VLOOKUP(C15,'1- Mode d''emploi'!$L$23:$N$27,3)","v":"Libellé du critère quand il sera choisi"},null,null,null,"Choix",{"$f":"VLOOKUP(I15,'1- Mode d''emploi'!$L$23:$M$27,2)","v":0},0.1111111111111111,0]
[5,"La direction s'assure de la conformité légale et réglementaire","Choix",0,{"$f":"VLOOKUP(C16,'1- Mode d''emploi'!$L$23:$N$27,3)","v":"Libellé du critère quand il sera choisi"},null,null,null,"Choix",{"$f":"VLOOKUP(I16,'1- Mode d''emploi'!$L$23:$M$27,2)","v":0},0.1111111111111111,0]
[6,"La direction affecte les responsabilités aux niveaux appropriés de l'organisme","Choix",0,{"$f":"VLOOKUP(C17,'1- Mode d''emploi'!$L$23:$N$27,3)","v":"Libellé du critère quand il sera choisi"},null,null,null,"Choix",{"$f":"VLOOKUP(I17,'1- Mode d''emploi'!$L$23:$M$27,2)","v":0},0.1111111111111111,0]
[7,"La direction s'assure que les ressources nécessaires sont allouées au management du risque","Choix",0,{"$f":"VLOOKUP(C18,'1- Mode d''emploi'!$L$23:$N$27,3)","v":"Libellé du critère quand il sera choisi"},null,null,null,"Choix",{"$f":"VLOOKUP(I18,'1- Mode d''emploi'!$L$23:$M$27,2)","v":0},0.1111111111111111,0]
[8,"La direction communique les avantages du management du risque à l'ensemble des parties prenantes","Choix",0,{"$f":"VLOOKUP(C19,'1- Mode d''emploi'!$L$23:$N$27,3)","v":"Libellé du critère quand il sera choisi"},null,null,null,"Choix",{"$f":"VLOOKUP(I19,'1- Mode d''emploi'!$L$23:$M$27,2)","v":0},0.1111111111111111,0]
[9,"La directions'assure que le cadre organisationnel de management du risque reste approprié","Choix",0,{"$f":"VLOOKUP(C20,'1- Mode d''emploi'!$L$23:$N$27,3)","v":"Libellé du critère quand il sera choisi"},null,null,null,"Choix",{"$f":"VLOOKUP(I20,'1- Mode d''emploi'!$L$23:$M$27,2)","v":0},0.1111111111111111,0]
["4.3","Conception du cadre organisationnel de management du risque",{"$f":"M21","v":"Insuffisant"},{"$f":"L21","v":0},{"$f":"IF('3- Article 4'!D21<='1- Mode d''emploi'!$F$18,'1- Mode d''emploi'!$H$18,IF(D21<='1- Mode d''emploi'!$F$19,'1- Mode d''emploi'!$H$19,IF(D21<='1- Mode d''emploi'!$F$20,'1- Mode d''emploi'!$H$20,'1- Mode d''emploi'!$H$21)))","v":"Il est nécessaire de formaliser les pratiques"},{"$f":"IF(E21<='1- Mode d''emploi'!$F$18,'1- Mode d''emploi'!$G$18,IF(E21<='1- Mode d''emploi'!$F$19,'1- Mode d''emploi'!$G$19,IF(E21<='1- Mode d''emploi'!$F$20,'1- Mode d''emploi'!$G$20,'1- Mode d''emploi'!$G$21)))","v":"Convaincant"},null,null,"Sous-article",null,{"$f":"1/5","v":0.2},{"$f":"L22*K22+L25*K25+L33*K33+L39*K39+L46*K46+L54*K54+L61*K61","v":0},{"$f":"IF(L21<='1- Mode d''emploi'!$F$18,'1- Mode d''emploi'!$G$18,IF(L21<='1- Mode d''emploi'!$F$19,'1- Mode d''emploi'!$G$19,IF(L21<='1- Mode d''emploi'!$F$20,'1- Mode d''emploi'!$G$20,'1- Mode d''emploi'!$G$21)))","v":"Insuffisant"}]
["4.3.1","Compréhension de l'organisme et de son contexte",{"$f":"M22","v":"Insuffisant"},{"$f":"L22","v":0},{"$f":"IF('3- Article 4'!D22<='1- Mode d''emploi'!$F$18,'1- Mode d''emploi'!$H$18,IF(D22<='1- Mode d''emploi'!$F$19,'1- Mode d''emploi'!$H$19,IF(D22<='1- Mode d''emploi'!$F$20,'1- Mode d''emploi'!$H$20,'1- Mode d''emploi'!$H$21)))","v":"Il est nécessaire de formaliser les pratiques"},{"$f":"IF(E22<='1- Mode d''emploi'!$F$18,'1- Mode d''emploi'!$G$18,IF(E22<='1- Mode d''emploi'!$F$19,'1- Mode d''emploi'!$G$19,IF(E22<='1- Mode d''emploi'!$F$20,'1- Mode d''emploi'!$G$20,'1- Mode d''emploi'!$G$21)))","v":"Convaincant"},null,null,"Sous-article1",null,{"$f":"1/7","v":0.14285714285714285},{"$f":"SUM(L23:L24)","v":0},{"$f":"IF(L22<='1- Mode d''emploi'!$F$18,'1- Mode d''emploi'!$G$18,IF(L22<='1- Mode d''emploi'!$F$19,'1- Mode d''emploi'!$G$19,IF(L22<='1- Mode d''emploi'!$F$20,'1- Mode d''emploi'!$G$20,'1- Mode d''emploi'!$G$21)))","v":"Insuffisant"}]
[1,"Les enjeux externes sont identifiés par rapport à votre organisme et à vos activités","Choix",{"$f":"J23","v":0},{"$f":"VLOOKUP(C23,'1- Mode d''emploi'!$L$23:$N$27,3)","v":"Libellé du critère quand il sera choisi"},null,null,null,"Choix",{"$f":"VLOOKUP(I23,'1- Mode d''emploi'!$L$23:$M$27,2)","v":0},{"$f":"1/COUNTA($B$23:$B$24)","v":0.5},{"$f":"IFERROR(J23*K23,\"\")","v":0}]
[2,"Les enjeux internes sont identifiés par rapport à votre organisme et à vos activités","Choix",{"$f":"J24","v":0},{"$f":"VLOOKUP(C24,'1- Mode d''emploi'!$L$23:$N$27,3)","v":"Libellé du critère quand il sera choisi"},null,null,null,"Choix",{"$f":"VLOOKUP(I24,'1- Mode d''emploi'!$L$23:$M$27,2)","v":0},{"$f":"1/COUNTA($B$23:$B$24)","v":0.5},{"$f":"IFERROR(J24*K24,\"\")","v":0}]
["4.3.2","Etablissement de la politique de management du risque",{"$f":"M25","v":"Insuffisant"},{"$f":"L25","v":0},{"$f":"IF('3- Article 4'!D25<='1- Mode d''emploi'!$F$18,'1- Mode d''emploi'!$H$18,IF(D25<='1- Mode d''emploi'!$F$19,'1- Mode d''emploi'!$H$19,IF(D25<='1- Mode d''emploi'!$F$20,'1- Mode d''emploi'!$H$20,'1- Mode d''emploi'!$H$21)))","v":"Il est nécessaire de formaliser les pratiques"},{"$f":"IF(E25<='1- Mode d''emploi'!$F$18,'1- Mode d''emploi'!$G$18,IF(E25<='1- Mode d''emploi'!$F$19,'1- Mode d''emploi'!$G$19,IF(E25<='1- Mode d''emploi'!$F$20,'1- Mode d''emploi'!$G$20,'1- Mode d''emploi'!$G$21)))","v":"Convaincant"},null,null,"Sous-article2",null,{"$f":"1/7","v":0.14285714285714285},{"$f":"SUM(L26:L32)","v":0},{"$f":"IF(L25<='1- Mode d''emploi'!$F$18,'1- Mode d''emploi'!$G$18,IF(L25<='1- Mode d''emploi'!$F$19,'1- Mode d''emploi'!$G$19,IF(L25<='1- Mode d''emploi'!$F$20,'1- Mode d''emploi'!$G$20,'1- Mode d''emploi'!$G$21)))","v":"Insuffisant"}]
[1,"Votre politique de management de risque aborde les motivations de l'organisme en matière de management du risque","Choix",{"$f":"J26","v":0},{"$f":"VLOOKUP(C26,'1- Mode d''emploi'!$L$23:$N$27,3)","v":"Libellé du critère quand il sera choisi"},null,null,null,"Choix",{"$f":"VLOOKUP(I26,'1- Mode d''emploi'!$L$23:$M$27,2)","v":0},{"$f":"1/COUNTA($B$26:$B$32)","v":0.14285714285714285},{"$f":"IFERROR(J26*K26,\"\")","v":0}]
[2,"Votre politique de management de risque aborde les liens entre les objectifs et autres politiques de l'organisme et sa politique de management du risque","Choix",{"$f":"J27","v":0},{"$f":"VLOOKUP(C27,'1- Mode d''emploi'!$L$23:$N$27,3)","v":"Libellé du critère quand il sera choisi"},null,null,null,"Choix",{"$f":"VLOOKUP(I27,'1- Mode d''emploi'!$L$23:$M$27,2)","v":0},{"$f":"1/COUNTA($B$26:$B$32)","v":0.14285714285714285},0]
[3,"Votre politique de management de risque aborde les responsabilités en matière de management du risque","Choix",0,{"$f":"VLOOKUP(C28,'1- Mode d''emploi'!$L$23:$N$27,3)","v":"Libellé du critère quand il sera choisi"},null,null,null,"Choix",{"$f":"VLOOKUP(I28,'1- Mode d''emploi'!$L$23:$M$27,2)","v":0},0.14285714285714285,0]
[4,"Votre politique de management de risque aborde la manière dont les conflits d'intérêts sont traité","Choix",0,{"$f":"VLOOKUP(C29,'1- Mode d''emploi'!$L$23:$N$27,3)","v":"Libellé du critère quand il sera choisi"},null,null,null,"Choix",{"$f":"VLOOKUP(I29,'1- Mode d''emploi'!$L$23:$M$27,2)","v":0},0.14285714285714285,0]
[5,"Votre politique de management de risque aborde l'engagement de mettre les ressources nécessaires à la disposition des personnes responsables du management du risque ","Choix",0,{"$f":"VLOOKUP(C30,'1- Mode d''emploi'!$L$23:$N$27,3)","v":"Libellé du critère quand il sera choisi"},null,null,null,"Choix",{"$f":"VLOOKUP(I30,'1- Mode d''emploi'!$L$23:$M$27,2)","v":0},0.14285714285714285,0]
[6,"Votre politique de management de risque aborde la manière dont les performances du management du risque vont être mesurées et rapportée","Choix",0,{"$f":"VLOOKUP(C31,'1- Mode d''emploi'!$L$23:$N$27,3)","v":"Libellé du critère quand il sera choisi"},null,null,null,"Choix",{"$f":"VLOOKUP(I31,'1- Mode d''emploi'!$L$23:$M$27,2)","v":0},0.14285714285714285,0]
[7,"Votre politique de management de risque aborde l'engagement à revoir et à améliorer la politique et le cadre organisationnel de management du risque périodiquement et à la suite d'un événement ou d'un changement de circonstances","Choix",0,{"$f":"VLOOKUP(C32,'1- Mode d''emploi'!$L$23:$N$27,3)","v":"Libellé du critère quand il sera choisi"},null,null,null,"Choix",{"$f":"VLOOKUP(I32,'1- Mode d''emploi'!$L$23:$M$27,2)","v":0},0.14285714285714285,0]
["4.3.3","Responsabilité",{"$f":"M33","v":"Insuffisant"},{"$f":"L33","v":0},{"$f":"IF('3- Article 4'!D33<='1- Mode d''emploi'!$F$18,'1- Mode d''emploi'!$H$18,IF(D33<='1- Mode d''emploi'!$F$19,'1- Mode d''emploi'!$H$19,IF(D33<='1- Mode d''emploi'!$F$20,'1- Mode d''emploi'!$H$20,'1- Mode d''emploi'!$H$21)))","v":"Il est nécessaire de formaliser les pratiques"},{"$f":"IF(E33<='1- Mode d''emploi'!$F$18,'1- Mode d''emploi'!$G$18,IF(E33<='1- Mode d''emploi'!$F$19,'1- Mode d''emploi'!$G$19,IF(E33<='1- Mode d''emploi'!$F$20,'1- Mode d''emploi'!$G$20,'1- Mode d''emploi'!$G$21)))","v":"Convaincant"},null,null,"Sous-article2",null,{"$f":"1/7","v":0.14285714285714285},{"$f":"SUM(L34:L38)","v":0},{"$f":"IF(L33<='1- Mode d''emploi'!$F$18,'1- Mode d''emploi'!$G$18,IF(L33<='1- Mode d''emploi'!$F$19,'1- Mode d''emploi'!$G$19,IF(L33<='1- Mode d''emploi'!$F$20,'1- Mode d''emploi'!$G$20,'1- Mode d''emploi'!$G$21)))","v":"Insuffisant"}]
[1,"Vous identifiez les propriétaires du risque qui ont la responsabilité du risque et l'autorité pour le gérer.","Choix",0,{"$f":"VLOOKUP(C34,'1- Mode d''emploi'!$L$23:$N$27,3)","v":"Libellé du critère quand il sera choisi"},null,null,null,"Choix",{"$f":"VLOOKUP(I34,'1- Mode d''emploi'!$L$23:$M$27,2)","v":0},{"$f":"1/COUNTA(B34:B38)","v":0.2},0]
[2,"Vous identifiez les responsables de l'élaboration, de la mise en oeuvre et de la tenue à jour du cadre organisationnel de management du risque.","Choix",{"$f":"J35","v":0},{"$f":"VLOOKUP(C35,'1- Mode d''emploi'!$L$23:$N$27,3)","v":"Libellé du critère quand il sera choisi"},null,null,null,{"$f":"C35","v":"Choix"},{"$f":"VLOOKUP(I35,'1- Mode d''emploi'!$L$23:$M$27,2)","v":0},{"$f":"1/COUNTA(B35:B39)","v":0.2},0]
[3,"Vous identifiez les autres responsabilités à tous les niveaux de l'organisme en matière de processus de management du risque.","Choix",0,{"$f":"VLOOKUP(C36,'1- Mode d''emploi'!$L$23:$N$27,3)","v":"Libellé du critère quand il sera choisi"},null,null,null,"Choix",{"$f":"VLOOKUP(I36,'1- Mode d''emploi'!$L$23:$M$27,2)","v":0},0.2,0]
[4,"Vous definissez les mesures de performance et de processus internes et/ou externes de rapports et de transmission à un niveau supérieur.","Choix",0,{"$f":"VLOOKUP(C37,'1- Mode d''emploi'!$L$23:$N$27,3)","v":"Libellé du critère quand il sera choisi"},null,null,null,"Choix",{"$f":"VLOOKUP(I37,'1- Mode d''emploi'!$L$23:$M$27,2)","v":0},0.2,0]
[5,"Vous établissez des niveaux de reconnaissance appropriés.","Choix",0,{"$f":"VLOOKUP(C38,'1- Mode d''emploi'!$L$23:$N$27,3)","v":"Libellé du critère quand il sera choisi"},null,null,null,"Choix",{"$f":"VLOOKUP(I38,'1- Mode d''emploi'!$L$23:$M$27,2)","v":0},0.2,0]
["4.3.4","Intégration aux processus organisationnels",{"$f":"M39","v":"Insuffisant"},{"$f":"L39","v":0},{"$f":"IF('3- Article 4'!D39<='1- Mode d''emploi'!$F$18,'1- Mode d''emploi'!$H$18,IF(D39<='1- Mode d''emploi'!$F$19,'1- Mode d''emploi'!$H$19,IF(D39<='1- Mode d''emploi'!$F$20,'1- Mode d''emploi'!$H$20,'1- Mode d''emploi'!$H$21)))","v":"Il est nécessaire de formaliser les pratiques"},{"$f":"IF(E39<='1- Mode d''emploi'!$F$18,'1- Mode d''emploi'!$G$18,IF(E39<='1- Mode d''emploi'!$F$19,'1- Mode d''emploi'!$G$19,IF(E39<='1- Mode d''emploi'!$F$20,'1- Mode d''emploi'!$G$20,'1- Mode d''emploi'!$G$21)))","v":"Convaincant"},null,null,"Sous-article2",null,{"$f":"1/7","v":0.14285714285714285},{"$f":"SUM(L40:L45)","v":0},{"$f":"IF(L39<='1- Mode d''emploi'!$F$18,'1- Mode d''emploi'!$G$18,IF(L39<='1- Mode d''emploi'!$F$19,'1- Mode d''emploi'!$G$19,IF(L39<='1- Mode d''emploi'!$F$20,'1- Mode d''emploi'!$G$20,'1- Mode d''emploi'!$G$21)))","v":"Insuffisant"}]
[1,"Le management du risque est intégré à toutes les pratiques et tous les processus de l’organisme ","Choix",{"$f":"J40","v":0},{"$f":"VLOOKUP(C40,'1- Mode d''emploi'!$L$23:$N$27,3)","v":"Libellé du critère quand il sera choisi"},null,null,null,{"$f":"C40","v":"Choix"},{"$f":"VLOOKUP(I40,'1- Mode d''emploi'!$L$23:$M$27,2)","v":0},{"$f":"1/COUNTA(B40:B45)","v":0.16666666666666666},0]
[2,"Le processus de management est intégré dans es processus organisationnels","Choix",{"$f":"J41","v":0},{"$f":"VLOOKUP(C41,'1- Mode d''emploi'!$L$23:$N$27,3)","v":"Libellé du critère quand il sera choisi"},null,null,null,{"$f":"C41","v":"Choix"},{"$f":"VLOOKUP(I41,'1- Mode d''emploi'!$L$23:$M$27,2)","v":0},{"$f":"1/COUNTA(B41:B46)","v":0.16666666666666666},0]
[3,"Le management du risque est pris en compte dans l'élaboration de la politique","Choix",0,{"$f":"VLOOKUP(C42,'1- Mode d''emploi'!$L$23:$N$27,3)","v":"Libellé du critère quand il sera choisi"},null,null,null,"Choix",{"$f":"VLOOKUP(I42,'1- Mode d''emploi'!$L$23:$M$27,2)","v":0},0.16666666666666666,0]
[4,"Le management du risque est pris en compte dans les plans d'activités et stratégiques et leur revue","Choix",0,{"$f":"VLOOKUP(C43,'1- Mode d''emploi'!$L$23:$N$27,3)","v":"Libellé du critère quand il sera choisi"},null,null,null,"Choix",{"$f":"VLOOKUP(I43,'1- Mode d''emploi'!$L$23:$M$27,2)","v":0},0.16666666666666666,0]
[5,"Le management du risque est pris en compte dans les processus de management du changement","Choix",0,{"$f":"VLOOKUP(C44,'1- Mode d''emploi'!$L$23:$N$27,3)","v":"Libellé du critère quand il sera choisi"},null,null,null,"Choix",{"$f":"VLOOKUP(I44,'1- Mode d''emploi'!$L$23:$M$27,2)","v":0},0.16666666666666666,0]
[6,"L’élaboration du plan de management du risque soit à l’échelle de l’organisme ","Choix",0,{"$f":"VLOOKUP(C45,'1- Mode d''emploi'!$L$23:$N$27,3)","v":"Libellé du critère quand il sera choisi"},null,null,null,"Choix",{"$f":"VLOOKUP(I45,'1- Mode d''emploi'!$L$23:$M$27,2)","v":0},0.16666666666666666,0]
["4.3.5","Ressources",{"$f":"M46","v":"Insuffisant"},{"$f":"L46","v":0},{"$f":"IF('3- Article 4'!D46<='1- Mode d''emploi'!$F$18,'1- Mode d''emploi'!$H$18,IF(D46<='1- Mode d''emploi'!$F$19,'1- Mode d''emploi'!$H$19,IF(D46<='1- Mode d''emploi'!$F$20,'1- Mode d''emploi'!$H$20,'1- Mode d''emploi'!$H$21)))","v":"Il est nécessaire de formaliser les pratiques"},{"$f":"IF(E46<='1- Mode d''emploi'!$F$18,'1- Mode d''emploi'!$G$18,IF(E46<='1- Mode d''emploi'!$F$19,'1- Mode d''emploi'!$G$19,IF(E46<='1- Mode d''emploi'!$F$20,'1- Mode d''emploi'!$G$20,'1- Mode d''emploi'!$G$21)))","v":"Convaincant"},null,null,"Sous-article2",null,{"$f":"1/7","v":0.14285714285714285},{"$f":"SUM(L47:L53)","v":0},{"$f":"IF(L46<='1- Mode d''emploi'!$F$18,'1- Mode d''emploi'!$G$18,IF(L46<='1- Mode d''emploi'!$F$19,'1- Mode d''emploi'!$G$19,IF(L46<='1- Mode d''emploi'!$F$20,'1- Mode d''emploi'!$G$20,'1- Mode d''emploi'!$G$21)))","v":"Insuffisant"}]
[1,"L’organisme alloue les ressources nécessaires au management du risque","Choix",{"$f":"J47","v":0},{"$f":"VLOOKUP(C47,'1- Mode d''emploi'!$L$23:$N$27,3)","v":"Libellé du critère quand il sera choisi"},null,null,null,{"$f":"C47","v":"Choix"},{"$f":"VLOOKUP(I47,'1- Mode d''emploi'!$L$23:$M$27,2)","v":0},{"$f":"1/COUNTA(B47:B53)","v":0.14285714285714285},0]
[2,"Les personnels, les aptitudes, l’expériences et les compétences sont pris en compte","Choix",{"$f":"J48","v":0},{"$f":"VLOOKUP(C48,'1- Mode d''emploi'!$L$23:$N$27,3)","v":"Libellé du critère quand il sera choisi"},null,null,null,{"$f":"C48","v":"Choix"},{"$f":"VLOOKUP(I48,'1- Mode d''emploi'!$L$23:$M$27,2)","v":0},{"$f":"1/COUNTA(B48:B54)","v":0.14285714285714285},0]
[3,"Les ressources nécessaire à chaque étapes du processus de management du risque sont prises en compte","Choix",0,{"$f":"VLOOKUP(C49,'1- Mode d''emploi'!$L$23:$N$27,3)","v":"Libellé du critère quand il sera choisi"},null,null,null,"Choix",{"$f":"VLOOKUP(I49,'1- Mode d''emploi'!$L$23:$M$27,2)","v":0},0.14285714285714285,0]
[4,"Les processus de l’organisme, les méthodes et outils de l’organisme servant au management du risque sont pris en compte","Choix",0,{"$f":"VLOOKUP(C50,'1- Mode d''emploi'!$L$23:$N$27,3)","v":"Libellé du critère quand il sera choisi"},null,null,null,"Choix",{"$f":"VLOOKUP(I50,'1- Mode d''emploi'!$L$23:$M$27,2)","v":0},0.14285714285714285,0]
[5,"Les processus et procédures documentés sont pris en compte","Choix",0,{"$f":"VLOOKUP(C51,'1- Mode d''emploi'!$L$23:$N$27,3)","v":"Libellé du critère quand il sera choisi"},null,null,null,"Choix",{"$f":"VLOOKUP(I51,'1- Mode d''emploi'!$L$23:$M$27,2)","v":0},0.14285714285714285,0]
[6,"Le système de gestion des informations et des connaissances est pris en compte","Choix",0,{"$f":"VLOOKUP(C52,'1- Mode d''emploi'!$L$23:$N$27,3)","v":"Libellé du critère quand il sera choisi"},null,null,null,"Choix",{"$f":"VLOOKUP(I52,'1- Mode d''emploi'!$L$23:$M$27,2)","v":0},0.14285714285714285,0]
[7,"Les programmes de formation sont pris en compte","Choix",0,{"$f":"VLOOKUP(C53,'1- Mode d''emploi'!$L$23:$N$27,3)","v":"Libellé du critère quand il sera choisi"},null,null,null,"Choix",{"$f":"VLOOKUP(I53,'1- Mode d''emploi'!$L$23:$M$27,2)","v":0},0.14285714285714285,0]
["4.3.6","Établissement de mécanismes de communication et de rapports internes",{"$f":"M54","v":"Insuffisant"},{"$f":"L54","v":0},{"$f":"IF('3- Article 4'!D54<='1- Mode d''emploi'!$F$18,'1- Mode d''emploi'!$H$18,IF(D54<='1- Mode d''emploi'!$F$19,'1- Mode d''emploi'!$H$19,IF(D54<='1- Mode d''emploi'!$F$20,'1- Mode d''emploi'!$H$20,'1- Mode d''emploi'!$H$21)))","v":"Il est nécessaire de formaliser les pratiques"},{"$f":"IF(E54<='1- Mode d''emploi'!$F$18,'1- Mode d''emploi'!$G$18,IF(E54<='1- Mode d''emploi'!$F$19,'1- Mode d''emploi'!$G$19,IF(E54<='1- Mode d''emploi'!$F$20,'1- Mode d''emploi'!$G$20,'1- Mode d''emploi'!$G$21)))","v":"Convaincant"},null,null,"Sous-article2",null,{"$f":"1/7","v":0.14285714285714285},{"$f":"SUM(L55:L60)","v":0},{"$f":"IF(L54<='1- Mode d''emploi'!$F$18,'1- Mode d''emploi'!$G$18,IF(L54<='1- Mode d''emploi'!$F$19,'1- Mode d''emploi'!$G$19,IF(L54<='1- Mode d''emploi'!$F$20,'1- Mode d''emploi'!$G$20,'1- Mode d''emploi'!$G$21)))","v":"Insuffisant"}]
[1,"L'organisme met en place des mécanismes de communication et de rapports internes pour soutenir et encourager les responsabilités et l'appropriation du risque.","Choix",{"$f":"J55","v":0},{"$f":"VLOOKUP(C55,'1- Mode d''emploi'!$L$23:$N$27,3)","v":"Libellé du critère quand il sera choisi"},null,null,null,{"$f":"C55","v":"Choix"},{"$f":"VLOOKUP(I55,'1- Mode d''emploi'!$L$23:$M$27,2)","v":0},{"$f":"1/COUNTA($B$55:$B$60)","v":0.16666666666666666},0]
[2,"Les mécanismes garantissent la communication appropriée des principales composantes du cadre organisationnel de management du risque, et de toutes modifications ultérieures.","Choix",{"$f":"J56","v":0},{"$f":"VLOOKUP(C56,'1- Mode d''emploi'!$L$23:$N$27,3)","v":"Libellé du critère quand il sera choisi"},null,null,null,{"$f":"C56","v":"Choix"},{"$f":"VLOOKUP(I56,'1- Mode d''emploi'!$L$23:$M$27,2)","v":0},{"$f":"1/COUNTA($B$55:$B$60)","v":0.16666666666666666},0]
[3,"Les mécanismes garantissent l'existence de rapports internes appropriés sur le cadre organisationnel de management du risque, son efficacité et ses effets.","Choix",0,{"$f":"VLOOKUP(C57,'1- Mode d''emploi'!$L$23:$N$27,3)","v":"Libellé du critère quand il sera choisi"},null,null,null,"Choix",{"$f":"VLOOKUP(I57,'1- Mode d''emploi'!$L$23:$M$27,2)","v":0},0.16666666666666666,0]
[4,"Les mécanismes garantissent la disponibilité des informations pertinentes issues de l'application du management du risque aux niveaux\net aux moments appropriés.","Choix",0,{"$f":"VLOOKUP(C58,'1- Mode d''emploi'!$L$23:$N$27,3)","v":"Libellé du critère quand il sera choisi"},null,null,null,"Choix",{"$f":"VLOOKUP(I58,'1- Mode d''emploi'!$L$23:$M$27,2)","v":0},0.16666666666666666,0]
[5,"Les mécanismes garantissent l'existence de processus de concertation avec des parties prenantes internes.","Choix",0,{"$f":"VLOOKUP(C59,'1- Mode d''emploi'!$L$23:$N$27,3)","v":"Libellé du critère quand il sera choisi"},null,null,null,"Choix",{"$f":"VLOOKUP(I59,'1- Mode d''emploi'!$L$23:$M$27,2)","v":0},0.16666666666666666,0]
[6,"Les mécanismes comportent les processus permettant de rassembler les informations relatives au risque provenant de différentes sources.","Choix",0,{"$f":"VLOOKUP(C60,'1- Mode d''emploi'!$L$23:$N$27,3)","v":"Libellé du critère quand il sera choisi"},null,null,null,"Choix",{"$f":"VLOOKUP(I60,'1- Mode d''emploi'!$L$23:$M$27,2)","v":0},0.16666666666666666,0]
["4.3.7","Établissement de mécanismes de communication et de rapports externes",{"$f":"M61","v":"Insuffisant"},{"$f":"L61","v":0},{"$f":"IF('3- Article 4'!D61<='1- Mode d''emploi'!$F$18,'1- Mode d''emploi'!$H$18,IF(D61<='1- Mode d''emploi'!$F$19,'1- Mode d''emploi'!$H$19,IF(D61<='1- Mode d''emploi'!$F$20,'1- Mode d''emploi'!$H$20,'1- Mode d''emploi'!$H$21)))","v":"Il est nécessaire de formaliser les pratiques"},{"$f":"IF(E61<='1- Mode d''emploi'!$F$18,'1- Mode d''emploi'!$G$18,IF(E61<='1- Mode d''emploi'!$F$19,'1- Mode d''emploi'!$G$19,IF(E61<='1- Mode d''emploi'!$F$20,'1- Mode d''emploi'!$G$20,'1- Mode d''emploi'!$G$21)))","v":"Convaincant"},null,null,"Sous-article2",null,{"$f":"1/7","v":0.14285714285714285},{"$f":"SUM(L62:L68)","v":0},{"$f":"IF(L61<='1- Mode d''emploi'!$F$18,'1- Mode d''emploi'!$G$18,IF(L61<='1- Mode d''emploi'!$F$19,'1- Mode d''emploi'!$G$19,IF(L61<='1- Mode d''emploi'!$F$20,'1- Mode d''emploi'!$G$20,'1- Mode d''emploi'!$G$21)))","v":"Insuffisant"}]
[1,"L'organisme élabore et met en oeuvre un plan sur la façon de communiquer avec les parties prenantes externes.","Choix",{"$f":"J62","v":0},{"$f":"VLOOKUP(C62,'1- Mode d''emploi'!$L$23:$N$27,3)","v":"Libellé du critère quand il sera choisi"},null,null,null,{"$f":"C62","v":"Choix"},{"$f":"VLOOKUP(I62,'1- Mode d''emploi'!$L$23:$M$27,2)","v":0},{"$f":"1/COUNTA($B$62:$B$68)","v":0.14285714285714285},0]
[2,"Les plans élaborés impliquent la participation des parties prenantes externes appropriées et l'assurance d'un échange efficace d'informations.","Choix",{"$f":"J63","v":0},{"$f":"VLOOKUP(C63,'1- Mode d''emploi'!$L$23:$N$27,3)","v":"Libellé du critère quand il sera choisi"},null,null,null,{"$f":"C63","v":"Choix"},{"$f":"VLOOKUP(I63,'1- Mode d''emploi'!$L$23:$M$27,2)","v":0},{"$f":"1/COUNTA($B$62:$B$68)","v":0.14285714285714285},0]
[3,"Les plans élaborés impliquent l'établissement de rapports externes conformes aux obligations légales, réglementaires et aux exigencesde la gouvernance de l'organisme.","Choix",0,{"$f":"VLOOKUP(C64,'1- Mode d''emploi'!$L$23:$N$27,3)","v":"Libellé du critère quand il sera choisi"},null,null,null,"Choix",{"$f":"VLOOKUP(I64,'1- Mode d''emploi'!$L$23:$M$27,2)","v":0},0.14285714285714285,0]
[4,"Les plans élaborés impliquent la mise en place d'un retour d'information et de rapports sur la communication et la concertation.","Choix",0,{"$f":"VLOOKUP(C65,'1- Mode d''emploi'!$L$23:$N$27,3)","v":"Libellé du critère quand il sera choisi"},null,null,null,"Choix",{"$f":"VLOOKUP(I65,'1- Mode d''emploi'!$L$23:$M$27,2)","v":0},0.14285714285714285,0]
[5,"Les plans élaborés impliquent l'utilisation de la communication pour renforcer la confiance dans l'organisme.","Choix",0,{"$f":"VLOOKUP(C66,'1- Mode d''emploi'!$L$23:$N$27,3)","v":"Libellé du critère quand il sera choisi"},null,null,null,"Choix",{"$f":"VLOOKUP(I66,'1- Mode d''emploi'!$L$23:$M$27,2)","v":0},0.14285714285714285,0]
[6,"Les plans élaborés impliquent la communication avec les parties prenantes en cas de crise ou d'imprévu.","Choix",0,{"$f":"VLOOKUP(C67,'1- Mode d''emploi'!$L$23:$N$27,3)","v":"Libellé du critère quand il sera choisi"},null,null,null,"Choix",{"$f":"VLOOKUP(I67,'1- Mode d''emploi'!$L$23:$M$27,2)","v":0},0.14285714285714285,0]
[7,"Les mécanismes comportent les processus permettant de rassembler les informations relatives au risque provenant de différentes sources.","Choix",0,{"$f":"VLOOKUP(C68,'1- Mode d''emploi'!$L$23:$N$27,3)","v":"Libellé du critère quand il sera choisi"},null,null,null,"Choix",{"$f":"VLOOKUP(I68,'1- Mode d''emploi'!$L$23:$M$27,2)","v":0},0.14285714285714285,0]
["4.4","Mise en œuvre du management du risque",{"$f":"M69","v":"Insuffisant"},{"$f":"L69","v":0},{"$f":"IF('3- Article 4'!D69<='1- Mode d''emploi'!$F$18,'1- Mode d''emploi'!$H$18,IF(D69<='1- Mode d''emploi'!$F$19,'1- Mode d''emploi'!$H$19,IF(D69<='1- Mode d''emploi'!$F$20,'1- Mode d''emploi'!$H$20,'1- Mode d''emploi'!$H$21)))","v":"Il est nécessaire de formaliser les pratiques"},{"$f":"IF(E69<='1- Mode d''emploi'!$F$18,'1- Mode d''emploi'!$G$18,IF(E69<='1- Mode d''emploi'!$F$19,'1- Mode d''emploi'!$G$19,IF(E69<='1- Mode d''emploi'!$F$20,'1- Mode d''emploi'!$G$20,'1- Mode d''emploi'!$G$21)))","v":"Convaincant"},null,null,"Sous-article",null,{"$f":"1/5","v":0.2},{"$f":"L70*K70+L77*K77","v":0},{"$f":"IF(L69<='1- Mode d''emploi'!$F$18,'1- Mode d''emploi'!$G$18,IF(L69<='1- Mode d''emploi'!$F$19,'1- Mode d''emploi'!$G$19,IF(L69<='1- Mode d''emploi'!$F$20,'1- Mode d''emploi'!$G$20,'1- Mode d''emploi'!$G$21)))","v":"Insuffisant"}]
["4.4.1","Mise en oeuvre du cadre organisationnel de management du risque",{"$f":"M70","v":"Insuffisant"},{"$f":"L70","v":0},{"$f":"IF('3- Article 4'!D70<='1- Mode d''emploi'!$F$18,'1- Mode d''emploi'!$H$18,IF(D70<='1- Mode d''emploi'!$F$19,'1- Mode d''emploi'!$H$19,IF(D70<='1- Mode d''emploi'!$F$20,'1- Mode d''emploi'!$H$20,'1- Mode d''emploi'!$H$21)))","v":"Il est nécessaire de formaliser les pratiques"},{"$f":"IF(E70<='1- Mode d''emploi'!$F$18,'1- Mode d''emploi'!$G$18,IF(E70<='1- Mode d''emploi'!$F$19,'1- Mode d''emploi'!$G$19,IF(E70<='1- Mode d''emploi'!$F$20,'1- Mode d''emploi'!$G$20,'1- Mode d''emploi'!$G$21)))","v":"Convaincant"},null,null,"Sous-article2",null,0.5,{"$f":"SUM(L71:L76)","v":0},{"$f":"IF(L70<='1- Mode d''emploi'!$F$18,'1- Mode d''emploi'!$G$18,IF(L70<='1- Mode d''emploi'!$F$19,'1- Mode d''emploi'!$G$19,IF(L70<='1- Mode d''emploi'!$F$20,'1- Mode d''emploi'!$G$20,'1- Mode d''emploi'!$G$21)))","v":"Insuffisant"}]
[1,"Le cadre organisationnel du management de risque de votre organisation est compatible ","Choix",{"$f":"J71","v":0},{"$f":"VLOOKUP(C71,'1- Mode d''emploi'!$L$23:$N$27,3)","v":"Libellé du critère quand il sera choisi"},null,null,null,{"$f":"C71","v":"Choix"},{"$f":"VLOOKUP(I71,'1- Mode d''emploi'!$L$23:$M$27,2)","v":0},{"$f":"1/COUNTA(B71:B76)","v":0.16666666666666666},{"$f":"IFERROR(J71*K71,\"\")","v":0}]
[2,"Il existe un calendrier pour la mise en œuvre du cadre organisationnel ","Choix",{"$f":"J72","v":0},{"$f":"VLOOKUP(C72,'1- Mode d''emploi'!$L$23:$N$27,3)","v":"Libellé du critère quand il sera choisi"},null,null,null,{"$f":"C72","v":"Choix"},{"$f":"VLOOKUP(I72,'1- Mode d''emploi'!$L$23:$M$27,2)","v":0},{"$f":"1/COUNTA(B72:B77)","v":0.16666666666666666},0]
[3,"Votre organisation applique une politique et un processus de management du risque aux processus organisationnel ","Choix",0,{"$f":"VLOOKUP(C73,'1- Mode d''emploi'!$L$23:$N$27,3)","v":"Libellé du critère quand il sera choisi"},null,null,null,"Choix",{"$f":"VLOOKUP(I73,'1- Mode d''emploi'!$L$23:$M$27,2)","v":0},0.16666666666666666,0]
[4,"Votre organisation est conforme aux obligations légales et règlementaires ","Choix",0,{"$f":"VLOOKUP(C74,'1- Mode d''emploi'!$L$23:$N$27,3)","v":"Libellé du critère quand il sera choisi"},null,null,null,"Choix",{"$f":"VLOOKUP(I74,'1- Mode d''emploi'!$L$23:$M$27,2)","v":0},0.16666666666666666,0]
[5,"Vous pensez que les décisions prises et l’élaboration des objectifs sont cohérentes ","Choix",0,{"$f":"VLOOKUP(C75,'1- Mode d''emploi'!$L$23:$N$27,3)","v":"Libellé du critère quand il sera choisi"},null,null,null,"Choix",{"$f":"VLOOKUP(I75,'1- Mode d''emploi'!$L$23:$M$27,2)","v":0},0.16666666666666666,0]
[6,"Vous pensez qu’une communication existe entre les parties prenantes afin de s’assurer que le cadre organisation de management de risque soit et reste approprié ","Choix",0,{"$f":"VLOOKUP(C76,'1- Mode d''emploi'!$L$23:$N$27,3)","v":"Libellé du critère quand il sera choisi"},null,null,null,"Choix",{"$f":"VLOOKUP(I76,'1- Mode d''emploi'!$L$23:$M$27,2)","v":0},0.16666666666666666,0]
["4.4.2","Mise en oeuvre du processus de management du risque",{"$f":"M77","v":"Insuffisant"},{"$f":"L77","v":0},{"$f":"IF('3- Article 4'!D77<='1- Mode d''emploi'!$F$18,'1- Mode d''emploi'!$H$18,IF(D77<='1- Mode d''emploi'!$F$19,'1- Mode d''emploi'!$H$19,IF(D77<='1- Mode d''emploi'!$F$20,'1- Mode d''emploi'!$H$20,'1- Mode d''emploi'!$H$21)))","v":"Il est nécessaire de formaliser les pratiques"},{"$f":"IF(E77<='1- Mode d''emploi'!$F$18,'1- Mode d''emploi'!$G$18,IF(E77<='1- Mode d''emploi'!$F$19,'1- Mode d''emploi'!$G$19,IF(E77<='1- Mode d''emploi'!$F$20,'1- Mode d''emploi'!$G$20,'1- Mode d''emploi'!$G$21)))","v":"Convaincant"},null,null,"Sous-article2",null,0.5,{"$f":"SUM(L78)","v":0},{"$f":"IF(L77<='1- Mode d''emploi'!$F$18,'1- Mode d''emploi'!$G$18,IF(L77<='1- Mode d''emploi'!$F$19,'1- Mode d''emploi'!$G$19,IF(L77<='1- Mode d''emploi'!$F$20,'1- Mode d''emploi'!$G$20,'1- Mode d''emploi'!$G$21)))","v":"Insuffisant"}]
[1,"Le processus de management du risque est adapté au contexte de votre organisation","Choix",{"$f":"J78","v":0},{"$f":"VLOOKUP(C78,'1- Mode d''emploi'!$L$23:$N$27,3)","v":"Libellé du critère quand il sera choisi"},null,null,null,{"$f":"C78","v":"Choix"},{"$f":"VLOOKUP(I78,'1- Mode d''emploi'!$L$23:$M$27,2)","v":0},{"$f":"1/COUNTA(B78)","v":1},0]
["4.5","Surveillance et revue du cadre organisationnel",{"$f":"M79","v":"Insuffisant"},{"$f":"L79","v":0},{"$f":"IF('3- Article 4'!D79<='1- Mode d''emploi'!$F$18,'1- Mode d''emploi'!$H$18,IF(D79<='1- Mode d''emploi'!$F$19,'1- Mode d''emploi'!$H$19,IF(D79<='1- Mode d''emploi'!$F$20,'1- Mode d''emploi'!$H$20,'1- Mode d''emploi'!$H$21)))","v":"Il est nécessaire de formaliser les pratiques"},{"$f":"IF(E79<='1- Mode d''emploi'!$F$18,'1- Mode d''emploi'!$G$18,IF(E79<='1- Mode d''emploi'!$F$19,'1- Mode d''emploi'!$G$19,IF(E79<='1- Mode d''emploi'!$F$20,'1- Mode d''emploi'!$G$20,'1- Mode d''emploi'!$G$21)))","v":"Convaincant"},null,null,"Sous-article",null,{"$f":"1/5","v":0.2},{"$f":"SUM(L80:L84)","v":0},{"$f":"IF(L79<='1- Mode d''emploi'!$F$18,'1- Mode d''emploi'!$G$18,IF(L79<='1- Mode d''emploi'!$F$19,'1- Mode d''emploi'!$G$19,IF(L79<='1- Mode d''emploi'!$F$20,'1- Mode d''emploi'!$G$20,'1- Mode d''emploi'!$G$21)))","v":"Insuffisant"}]
[1,"Les performances de management du risque dans votre organisation sont mesurées ","Choix",{"$f":"J80","v":0},{"$f":"VLOOKUP(C80,'1- Mode d''emploi'!$L$23:$N$27,3)","v":"Libellé du critère quand il sera choisi"},null,null,null,{"$f":"C80","v":"Choix"},{"$f":"VLOOKUP(I80,'1- Mode d''emploi'!$L$23:$M$27,2)","v":0},{"$f":"1/COUNTA(B80:B84)","v":0.2},0]
[2,"Les mesures des performances sont faites de manière périodique ","Choix",{"$f":"J81","v":0},{"$f":"VLOOKUP(C81,'1- Mode d''emploi'!$L$23:$N$27,3)","v":"Libellé du critère quand il sera choisi"},null,null,null,{"$f":"C81","v":"Choix"},{"$f":"VLOOKUP(I81,'1- Mode d''emploi'!$L$23:$M$27,2)","v":0},{"$f":"1/COUNTA(B81:B85)","v":0.2},0]
[3,"Les mesures périodiques entre le cadre organisationnel, la politique et le plan de sont toujours appropriées au contexte interne et externe de votre organisation ","Choix",0,{"$f":"VLOOKUP(C82,'1- Mode d''emploi'!$L$23:$N$27,3)","v":"Libellé du critère quand il sera choisi"},null,null,null,"Choix",{"$f":"VLOOKUP(I82,'1- Mode d''emploi'!$L$23:$M$27,2)","v":0},0.2,0]
[4,"Vous établissez des rapports sur les risques, les avancées du plan de management du risque","Choix",0,{"$f":"VLOOKUP(C83,'1- Mode d''emploi'!$L$23:$N$27,3)","v":"Libellé du critère quand il sera choisi"},null,null,null,"Choix",{"$f":"VLOOKUP(I83,'1- Mode d''emploi'!$L$23:$M$27,2)","v":0},0.2,0]
[5,"Votre organisation vérifie l’efficacité du cadre organisationnel de management du risque ","Choix",0,{"$f":"VLOOKUP(C84,'1- Mode d''emploi'!$L$23:$N$27,3)","v":"Libellé du critère quand il sera choisi"},null,null,null,"Choix",{"$f":"VLOOKUP(I84,'1- Mode d''emploi'!$L$23:$M$27,2)","v":0},0.2,0]
["4.6","Amélioration continue du cadre organisationnel",{"$f":"M85","v":"Insuffisant"},{"$f":"L85","v":0},{"$f":"IF('3- Article 4'!D85<='1- Mode d''emploi'!$F$18,'1- Mode d''emploi'!$H$18,IF(D85<='1- Mode d''emploi'!$F$19,'1- Mode d''emploi'!$H$19,IF(D85<='1- Mode d''emploi'!$F$20,'1- Mode d''emploi'!$H$20,'1- Mode d''emploi'!$H$21)))","v":"Il est nécessaire de formaliser les pratiques"},{"$f":"IF(E85<='1- Mode d''emploi'!$F$18,'1- Mode d''emploi'!$G$18,IF(E85<='1- Mode d''emploi'!$F$19,'1- Mode d''emploi'!$G$19,IF(E85<='1- Mode d''emploi'!$F$20,'1- Mode d''emploi'!$G$20,'1- Mode d''emploi'!$G$21)))","v":"Convaincant"},null,null,"Sous-article",null,{"$f":"1/5","v":0.2},{"$f":"SUM(L86:L88)","v":0},{"$f":"IF(L85<='1- Mode d''emploi'!$F$18,'1- Mode d''emploi'!$G$18,IF(L85<='1- Mode d''emploi'!$F$19,'1- Mode d''emploi'!$G$19,IF(L85<='1- Mode d''emploi'!$F$20,'1- Mode d''emploi'!$G$20,'1- Mode d''emploi'!$G$21)))","v":"Insuffisant"}]
[1,"L’amélioration continue est un aspect prépondérant pour votre cadre organisationnel ","Choix",{"$f":"J86","v":0},{"$f":"VLOOKUP(C86,'1- Mode d''emploi'!$L$23:$N$27,3)","v":"Libellé du critère quand il sera choisi"},null,null,null,{"$f":"C86","v":"Choix"},{"$f":"VLOOKUP(I86,'1- Mode d''emploi'!$L$23:$M$27,2)","v":0},{"$f":"1/COUNTA($B$86:$B$88)","v":0.33333333333333331},0]
[2,"Des décisions régulières sont prises sur les possibilités d’amélioration du cadre organisationnel, de la politique et du plan de management du risque ","Choix",{"$f":"J87","v":0},{"$f":"VLOOKUP(C87,'1- Mode d''emploi'!$L$23:$N$27,3)","v":"Libellé du critère quand il sera choisi"},null,null,null,{"$f":"C87","v":"Choix"},{"$f":"VLOOKUP(I87,'1- Mode d''emploi'!$L$23:$M$27,2)","v":0},{"$f":"1/COUNTA($B$86:$B$88)","v":0.33333333333333331},0]
[3,"Ces décisions entraînent des améliorations du management du risque et de la culture du management du risque de l’organisme","Choix",0,{"$f":"VLOOKUP(C88,'1- Mode d''emploi'!$L$23:$N$27,3)","v":"Libellé du critère quand il sera choisi"},null,null,null,"Choix",{"$f":"VLOOKUP(I88,'1- Mode d''emploi'!$L$23:$M$27,2)","v":0},0.33333333333333331,0]

{"sheet":"4- Article 5","index":3,"n_rows":109,"n_cols":15,"rows_kept":109,"cut":false,"hidden":false,"merged":[[26,4,26,5],[30,4,30,5],[6,0,6,1],[6,2,6,3],[9,4,9,5],[10,4,10,5],[14,4,14,5],[18,4,18,5],[102,4,102,5],[62,4,62,5],[73,4,73,5],[82,4,82,5],[1,1,1,5],[2,0,2,1],[2,2,2,5],[3,0,3,1],[3,2,3,4],[3,5,6,5],[4,0,4,1],[4,2,4,4],[5,0,5,1],[5,2,5,4],[19,4,19,5],[23,4,23,5],[34,4,34,5],[44,4,44,5],[57,4,57,5],[61,4,61,5],[94,4,94,5],[35,4,35,5]]}
[{"$f":"'1- Mode d''emploi'!A1","v":"Document d'autodiagnostic en référence à la norme ISO 31000:2009"}]
[null,"  Autodiagnostic sur l'Article 5: Processus"]
["Etablissement :",null,{"$f":"'1- Mode d''emploi'!$M$28","v":"-"},null,null,null,null,null,"Choix réalisé","% Véracité du choix","Pondération de chaque exigence","Taux de CONFORMITÉ pondéré sur l'exigence"]
["Date de l'autodiagnostic (jj/mm/aaaa) : ",null,null,null,null,"Signature de l'évaluateur :\n\n\n\n\n"]
["Responsable de l'évaluation : "]
["L'équipe d'évaluation:"]
["Contact de la responsable : ",null,"Tél:",null,"@"]
[]
["Réf.","Items des articles de la norme","Evaluations","Taux %","Libellés des évaluations","Modes de preuve et commentaires"]
["Art .5","Processus",{"$f":"M10","v":"Insuffisant"},{"$f":"AVERAGE(D11,D15,D19,D35,D62,D95,D103)","v":0},{"$f":"IF('4- Article 5'!D10<='1- Mode d''emploi'!$F$18,'1- Mode d''emploi'!$H$18,IF(D10<='1- Mode d''emploi'!$F$19,'1- Mode d''emploi'!$H$19,IF(D10<='1- Mode d''emploi'!$F$20,'1- Mode d''emploi'!$H$20,'1- Mode d''emploi'!$H$21)))","v":"Il est nécessaire de formaliser les pratiques"},null,null,null,"Article",null,null,{"$f":"D10","v":0},{"$f":"IF(L10<='1- Mode d''emploi'!$F$18,'1- Mode d''emploi'!$G$18,IF(L10<='1- Mode d''emploi'!$F$19,'1- Mode d''emploi'!$G$19,IF(L10<='1- Mode d''emploi'!$F$20,'1- Mode d''emploi'!$G$20,'1- Mode d''emploi'!$G$21)))","v":"Insuffisant"},null,"-"]
["5.1","Généralités",{"$f":"M11","v":"Insuffisant"},{"$f":"L11","v":0},{"$f":"IF('4- Article 5'!D11<='1- Mode d''emploi'!$F$18,'1- Mode d''emploi'!$H$18,IF(D11<='1- Mode d''emploi'!$F$19,'1- Mode d''emploi'!$H$19,IF(D11<='1- Mode d''emploi'!$F$20,'1- Mode d''emploi'!$H$20,'1- Mode d''emploi'!$H$21)))","v":"Il est nécessaire de formaliser les pratiques"},null,null,null,"Sous-article n-1",null,null,{"$f":"SUM(L12:L14)","v":0},{"$f":"IF(L11<='1- Mode d''emploi'!$F$18,'1- Mode d''emploi'!$G$18,IF(L11<='1- Mode d''emploi'!$F$19,'1- Mode d''emploi'!$G$19,IF(L11<='1- Mode d''emploi'!$F$20,'1- Mode d''emploi'!$G$20,'1- Mode d''emploi'!$G$21)))","v":"Insuffisant"}]
[1,"Le management du risque est une partie intégrante du management.","Choix",{"$f":"J12","v":0},{"$f":"VLOOKUP(C12,'1- Mode d''emploi'!$L$23:$N$27,3)","v":"Libellé du critère quand il sera choisi"},null,null,null,{"$f":"C12","v":"Choix"},{"$f":"VLOOKUP(I12,'1- Mode d''emploi'!$L$23:$M$27,2)","v":0},{"$f":"1/3","v":0.33333333333333331},{"$f":"IFERROR(K12*J12,\"\")","v":0},{"$f":"AVERAGE(J12:J14)","v":0}]
[2,"Le management du risque est intégré à la culture et aux pratiques.","Choix",{"$f":"J13","v":0},{"$f":"VLOOKUP(C13,'1- Mode d''emploi'!$L$23:$N$27,3)","v":"Libellé du critère quand il sera choisi"},null,null,null,{"$f":"C13","v":"Choix"},{"$f":"VLOOKUP(I13,'1- Mode d''emploi'!$L$23:$M$27,2)","v":0},{"$f":"1/3","v":0.33333333333333331},{"$f":"IFERROR(K13*J13,\"\")","v":0}]
[3,"Le management du risque est adapté aux processus métiers de l'organisme.","Choix",0,{"$f":"VLOOKUP(C14,'1- Mode d''emploi'!$L$23:$N$27,3)","v":"Libellé du critère quand il sera choisi"},null,null,null,"Choix",{"$f":"VLOOKUP(I14,'1- Mode d''emploi'!$L$23:$M$27,2)","v":0},0.33333333333333331,{"$f":"IFERROR(K14*J14,\"\")","v":0}]
["5.2","Communication et concertation",{"$f":"M15","v":"Insuffisant"},{"$f":"L15","v":0},{"$f":"IF('4- Article 5'!D15<='1- Mode d''emploi'!$F$18,'1- Mode d''emploi'!$H$18,IF(D15<='1- Mode d''emploi'!$F$19,'1- Mode d''emploi'!$H$19,IF(D15<='1- Mode d''emploi'!$F$20,'1- Mode d''emploi'!$H$20,'1- Mode d''emploi'!$H$21)))","v":"Il est nécessaire de formaliser les pratiques"},null,null,null,"Sous-article n-1",null,null,{"$f":"SUM(L16:L18)","v":0},{"$f":"IF(L15<='1- Mode d''emploi'!$F$18,'1- Mode d''emploi'!$G$18,IF(L15<='1- Mode d''emploi'!$F$19,'1- Mode d''emploi'!$G$19,IF(L15<='1- Mode d''emploi'!$F$20,'1- Mode d''emploi'!$G$20,'1- Mode d''emploi'!$G$21)))","v":"Insuffisant"}]
[1,"Une communication et une concertation existent entre les parties internes et externes à toutes les étapes du processus du management du risque.","Choix",{"$f":"J16","v":0},{"$f":"VLOOKUP(C16,'1- Mode d''emploi'!$L$23:$N$27,3)","v":"Libellé du critère quand il sera choisi"},null,null,null,{"$f":"C16","v":"Choix"},{"$f":"VLOOKUP(I16,'1- Mode d''emploi'!$L$23:$M$27,2)","v":0},{"$f":"1/3","v":0.33333333333333331},0]
[2,"Des plans de communication et de concertation appropriés sont élaborés.","Choix",{"$f":"J17","v":0},{"$f":"VLOOKUP(C17,'1- Mode d''emploi'!$L$23:$N$27,3)","v":"Libellé du critère quand il sera choisi"},null,null,null,{"$f":"C17","v":"Choix"},{"$f":"VLOOKUP(I17,'1- Mode d''emploi'!$L$23:$M$27,2)","v":0},{"$f":"1/3","v":0.33333333333333331},0]
[3,"Vos plans de communications traitent les risques, les causes et les alternatives.","Choix",0,{"$f":"VLOOKUP(C18,'1- Mode d''emploi'!$L$23:$N$27,3)","v":"Libellé du critère quand il sera choisi"},null,null,null,"Choix",{"$f":"VLOOKUP(I18,'1- Mode d''emploi'!$L$23:$M$27,2)","v":0},0.33333333333333331,0]
["5.3","Etablissement du contexte",{"$f":"M19","v":"Insuffisant"},{"$f":"L19","v":0},{"$f":"IF('4- Article 5'!D19<='1- Mode d''emploi'!$F$18,'1- Mode d''emploi'!$H$18,IF(D19<='1- Mode d''emploi'!$F$19,'1- Mode d''emploi'!$H$19,IF(D19<='1- Mode d''emploi'!$F$20,'1- Mode d''emploi'!$H$20,'1- Mode d''emploi'!$H$21)))","v":"Il est nécessaire de formaliser les pratiques"},null,null,null,"Sous-article n-1",null,null,{"$f":"L20*K20+L24*K24+L27*K27+L31*K31","v":0},{"$f":"IF(L19<='1- Mode d''emploi'!$F$18,'1- Mode d''emploi'!$G$18,IF(L19<='1- Mode d''emploi'!$F$19,'1- Mode d''emploi'!$G$19,IF(L19<='1- Mode d''emploi'!$F$20,'1- Mode d''emploi'!$G$20,'1- Mode d''emploi'!$G$21)))","v":"Insuffisant"}]
["5.3.2","Etablissement du contexte externe",{"$f":"M20","v":"Insuffisant"},{"$f":"L20","v":0},{"$f":"IF('4- Article 5'!D20<='1- Mode d''emploi'!$F$18,'1- Mode d''emploi'!$H$18,IF(D20<='1- Mode d''emploi'!$F$19,'1- Mode d''emploi'!$H$19,IF(D20<='1- Mode d''emploi'!$F$20,'1- Mode d''emploi'!$H$20,'1- Mode d''emploi'!$H$21)))","v":"Il est nécessaire de formaliser les pratiques"},null,null,null,"Sous-article n-2",null,{"$f":"1/4","v":0.25},{"$f":"SUM(L21:L23)","v":0},{"$f":"IF(L20<='1- Mode d''emploi'!$F$18,'1- Mode d''emploi'!$G$18,IF(L20<='1- Mode d''emploi'!$F$19,'1- Mode d''emploi'!$G$19,IF(L20<='1- Mode d''emploi'!$F$20,'1- Mode d''emploi'!$G$20,'1- Mode d''emploi'!$G$21)))","v":"Insuffisant"}]
[1,"Les objectifs et les préoccupations des parties prenantes externes sont pris en compte lors de l'élaboration des critères de risque.","Choix",{"$f":"J21","v":0},{"$f":"VLOOKUP(C21,'1- Mode d''emploi'!$L$23:$N$27,3)","v":"Libellé du critère quand il sera choisi"},null,null,null,{"$f":"C21","v":"Choix"},{"$f":"VLOOKUP(I21,'1- Mode d''emploi'!$L$23:$M$27,2)","v":0},{"$f":"1/3","v":0.33333333333333331},{"$f":"IFERROR(K21*J21,\"\")","v":0}]
[2,"Le contexte externe il basé sur le contexte à l'échelle de l'organisme.","Choix",{"$f":"J22","v":0},{"$f":"VLOOKUP(C22,'1- Mode d''emploi'!$L$23:$N$27,3)","v":"Libellé du critère quand il sera choisi"},null,null,null,{"$f":"C22","v":"Choix"},{"$f":"VLOOKUP(I22,'1- Mode d''emploi'!$L$23:$M$27,2)","v":0},{"$f":"1/3","v":0.33333333333333331},0]
[3,"Le contexte externe prend en compte des détails spécifiques découlant des obligations légales et réglementaires, des perceptions des parties prenantes et d'autres aspects des risques propres au domaine d'application du processus de management du risque.","Choix",0,{"$f":"VLOOKUP(C23,'1- Mode d''emploi'!$L$23:$N$27,3)","v":"Libellé du critère quand il sera choisi"},null,null,null,"Choix",{"$f":"VLOOKUP(I23,'1- Mode d''emploi'!$L$23:$M$27,2)","v":0},0.33333333333333331,0]
["5.3.3","Etablissement du contexte interne",{"$f":"M24","v":"Insuffisant"},{"$f":"L24","v":0},{"$f":"IF('4- Article 5'!D24<='1- Mode d''emploi'!$F$18,'1- Mode d''emploi'!$H$18,IF(D24<='1- Mode d''emploi'!$F$19,'1- Mode d''emploi'!$H$19,IF(D24<='1- Mode d''emploi'!$F$20,'1- Mode d''emploi'!$H$20,'1- Mode d''emploi'!$H$21)))","v":"Il est nécessaire de formaliser les pratiques"},null,null,null,"Sous-article n-2",null,{"$f":"1/4","v":0.25},{"$f":"SUM(L25:L26)","v":0},{"$f":"IF(L24<='1- Mode d''emploi'!$F$18,'1- Mode d''emploi'!$G$18,IF(L24<='1- Mode d''emploi'!$F$19,'1- Mode d''emploi'!$G$19,IF(L24<='1- Mode d''emploi'!$F$20,'1- Mode d''emploi'!$G$20,'1- Mode d''emploi'!$G$21)))","v":"Insuffisant"}]
[1,"Le processus de management du risque est cohérent avec la culture, les processus, la structure, la stratégie de l'organisme.","Choix",{"$f":"J25","v":0},{"$f":"VLOOKUP(C25,'1- Mode d''emploi'!$L$23:$N$27,3)","v":"Libellé du critère quand il sera choisi"},null,null,null,{"$f":"C25","v":"Choix"},{"$f":"VLOOKUP(I25,'1- Mode d''emploi'!$L$23:$M$27,2)","v":0},{"$f":"1/2","v":0.5},0]
[2,"Le contexte interne comprend tout ce qui, au sein d'un organisme, peut influencer la manière dont l'organisme gère le risque.","Choix",0,{"$f":"VLOOKUP(C26,'1- Mode d''emploi'!$L$23:$N$27,3)","v":"Libellé du critère quand il sera choisi"},null,null,null,"Choix",{"$f":"VLOOKUP(I26,'1- Mode d''emploi'!$L$23:$M$27,2)","v":0},{"$f":"1/2","v":0.5},0]
["5.3.4","Établissement du contexte du processus de management du risque",{"$f":"M27","v":"Insuffisant"},{"$f":"L27","v":0},{"$f":"IF('4- Article 5'!D27<='1- Mode d''emploi'!$F$18,'1- Mode d''emploi'!$H$18,IF(D27<='1- Mode d''emploi'!$F$19,'1- Mode d''emploi'!$H$19,IF(D27<='1- Mode d''emploi'!$F$20,'1- Mode d''emploi'!$H$20,'1- Mode d''emploi'!$H$21)))","v":"Il est nécessaire de formaliser les pratiques"},null,null,null,"Sous-article n-2",null,{"$f":"1/4","v":0.25},{"$f":"SUM(L28:L30)","v":0},{"$f":"IF(L27<='1- Mode d''emploi'!$F$18,'1- Mode d''emploi'!$G$18,IF(L27<='1- Mode d''emploi'!$F$19,'1- Mode d''emploi'!$G$19,IF(L27<='1- Mode d''emploi'!$F$20,'1- Mode d''emploi'!$G$20,'1- Mode d''emploi'!$G$21)))","v":"Insuffisant"}]
[1,"Les objectifs, les stratégies, les domaines d'application et les paramètres des activités de l'organisme ou des parties de l'organisme où le processus de management du risque s'applique sont fixés.","Choix",{"$f":"J28","v":0},{"$f":"VLOOKUP(C28,'1- Mode d''emploi'!$L$23:$N$27,3)","v":"Libellé du critère quand il sera choisi"},null,null,null,{"$f":"C28","v":"Choix"},{"$f":"VLOOKUP(I28,'1- Mode d''emploi'!$L$23:$M$27,2)","v":0},{"$f":"1/3","v":0.33333333333333331},{"$f":"IFERROR(K28*J28,\"\")","v":0}]
[2,"Le management du risque est entrepris en tenant compte de la nécessité de justifier les ressources servant à sa mise en œuvre.","Choix",{"$f":"J29","v":0},{"$f":"VLOOKUP(C29,'1- Mode d''emploi'!$L$23:$N$27,3)","v":"Libellé du critère quand il sera choisi"},null,null,null,{"$f":"C29","v":"Choix"},{"$f":"VLOOKUP(I29,'1- Mode d''emploi'!$L$23:$M$27,2)","v":0},{"$f":"1/3","v":0.33333333333333331},0]
[3,"Les ressources nécessaires les responsabilités et autorités ainsi que les enregistrements à conserver sont spécifiés.","Choix",0,{"$f":"VLOOKUP(C30,'1- Mode d''emploi'!$L$23:$N$27,3)","v":"Libellé du critère quand il sera choisi"},null,null,null,"Choix",{"$f":"VLOOKUP(I30,'1- Mode d''emploi'!$L$23:$M$27,2)","v":0},0.33333333333333331,0]
["5.3.5","Définition des critères de risque",{"$f":"M31","v":"Insuffisant"},{"$f":"L31","v":0},{"$f":"IF('4- Article 5'!D31<='1- Mode d''emploi'!$F$18,'1- Mode d''emploi'!$H$18,IF(D31<='1- Mode d''emploi'!$F$19,'1- Mode d''emploi'!$H$19,IF(D31<='1- Mode d''emploi'!$F$20,'1- Mode d''emploi'!$H$20,'1- Mode d''emploi'!$H$21)))","v":"Il est nécessaire de formaliser les pratiques"},null,null,null,"Sous-article n-2",null,{"$f":"1/4","v":0.25},{"$f":"SUM(L32:L34)","v":0},{"$f":"IF(L31<='1- Mode d''emploi'!$F$18,'1- Mode d''emploi'!$G$18,IF(L31<='1- Mode d''emploi'!$F$19,'1- Mode d''emploi'!$G$19,IF(L31<='1- Mode d''emploi'!$F$20,'1- Mode d''emploi'!$G$20,'1- Mode d''emploi'!$G$21)))","v":"Insuffisant"}]
[1,"L'organisme définit des critères permettant d'évaluer l'importance du risque.","Choix",{"$f":"J32","v":0},{"$f":"VLOOKUP(C32,'1- Mode d''emploi'!$L$23:$N$27,3)","v":"Libellé du critère quand il sera choisi"},null,null,null,{"$f":"C32","v":"Choix"},{"$f":"VLOOKUP(I32,'1- Mode d''emploi'!$L$23:$M$27,2)","v":0},{"$f":"1/3","v":0.33333333333333331},{"$f":"IFERROR(K32*J32,\"\")","v":0}]
[2,"Ces critères reflètent les valeurs, les objectifs et les ressources de l'organisme.","Choix",{"$f":"J33","v":0},{"$f":"VLOOKUP(C33,'1- Mode d''emploi'!$L$23:$N$27,3)","v":"Libellé du critère quand il sera choisi"},null,null,null,{"$f":"C33","v":"Choix"},{"$f":"VLOOKUP(I33,'1- Mode d''emploi'!$L$23:$M$27,2)","v":0},{"$f":"1/3","v":0.33333333333333331},0]
[3,"Les critères de risque sont cohérents avec la politique de management du risque de l'organisme.","Choix",0,{"$f":"VLOOKUP(C34,'1- Mode d''emploi'!$L$23:$N$27,3)","v":"Libellé du critère quand il sera choisi"},null,null,null,"Choix",{"$f":"VLOOKUP(I34,'1- Mode d''emploi'!$L$23:$M$27,2)","v":0},0.33333333333333331,0]
["5.4","Appréciation du risque",{"$f":"M35","v":"Insuffisant"},{"$f":"AVERAGE(D36,D45,D58)","v":0},{"$f":"IF('4- Article 5'!D35<='1- Mode d''emploi'!$F$18,'1- Mode d''emploi'!$H$18,IF(D35<='1- Mode d''emploi'!$F$19,'1- Mode d''emploi'!$H$19,IF(D35<='1- Mode d''emploi'!$F$20,'1- Mode d''emploi'!$H$20,'1- Mode d''emploi'!$H$21)))","v":"Il est nécessaire de formaliser les pratiques"},null,null,null,"Sous-article n-1",null,null,{"$f":"D35","v":0},{"$f":"IF(L35<='1- Mode d''emploi'!$F$18,'1- Mode d''emploi'!$G$18,IF(L35<='1- Mode d''emploi'!$F$19,'1- Mode d''emploi'!$G$19,IF(L35<='1- Mode d''emploi'!$F$20,'1- Mode d''emploi'!$G$20,'1- Mode d''emploi'!$G$21)))","v":"Insuffisant"}]
["5.4.2","Identification du risque",{"$f":"M36","v":"Insuffisant"},{"$f":"AVERAGE(D37:D44)","v":0},{"$f":"IF('4- Article 5'!D36<='1- Mode d''emploi'!$F$18,'1- Mode d''emploi'!$H$18,IF(D36<='1- Mode d''emploi'!$F$19,'1- Mode d''emploi'!$H$19,IF(D36<='1- Mode d''emploi'!$F$20,'1- Mode d''emploi'!$H$20,'1- Mode d''emploi'!$H$21)))","v":"Il est nécessaire de formaliser les pratiques"},null,null,null,"Sous-article n-2",null,null,{"$f":"D36","v":0},{"$f":"IF(L36<='1- Mode d''emploi'!$F$18,'1- Mode d''emploi'!$G$18,IF(L36<='1- Mode d''emploi'!$F$19,'1- Mode d''emploi'!$G$19,IF(L36<='1- Mode d''emploi'!$F$20,'1- Mode d''emploi'!$G$20,'1- Mode d''emploi'!$G$21)))","v":"Insuffisant"}]
[1,"Les personnes ayant les connaissances appropriées participent à l'identification des risques.","Choix",{"$f":"J37","v":0},{"$f":"VLOOKUP(C37,'1- Mode d''emploi'!$L$23:$N$27,3)","v":"Libellé du critère quand il sera choisi"},null,null,null,{"$f":"C37","v":"Choix"},{"$f":"VLOOKUP(I37,'1- Mode d''emploi'!$L$23:$M$27,2)","v":0},{"$f":"1/8","v":0.125}]
[2,"L'organisme a identifié les sources de risque, les domaines d'impact, les événements (y compris les changements de circonstances), ainsi que leurs causes et conséquences potentielles. même si cela peut ne pas être évident.","Choix",0,{"$f":"VLOOKUP(C38,'1- Mode d''emploi'!$L$23:$N$27,3)","v":"Libellé du critère quand il sera choisi"},null,null,null,"Choix",{"$f":"VLOOKUP(I38,'1- Mode d''emploi'!$L$23:$M$27,2)","v":0}]
[3,"L'identification du risque a pris en compte l'examen des réactions en chaîne des conséquences particulières, y compris les effets en cascade et cumulatifs ","Choix",0,{"$f":"VLOOKUP(C39,'1- Mode d''emploi'!$L$23:$N$27,3)","v":"Libellé du critère quand il sera choisi"},null,null,null,"Choix",{"$f":"VLOOKUP(I39,'1- Mode d''emploi'!$L$23:$M$27,2)","v":0}]
[4,"Un large éventail de conséquences pour chaque risque a été examiné, même si la source ou la cause du risque peuvent ne pas être évidentes.","Choix",0,{"$f":"VLOOKUP(C40,'1- Mode d''emploi'!$L$23:$N$27,3)","v":"Libellé du critère quand il sera choisi"},null,null,null,"Choix",{"$f":"VLOOKUP(I40,'1- Mode d''emploi'!$L$23:$M$27,2)","v":0}]
[5,"Toutes les causes et conséquences significatives ont été étudiées","Choix",0,{"$f":"VLOOKUP(C41,'1- Mode d''emploi'!$L$23:$N$27,3)","v":"Libellé du critère quand il sera choisi"},null,null,null,"Choix",{"$f":"VLOOKUP(I41,'1- Mode d''emploi'!$L$23:$M$27,2)","v":0}]
[6,"Les informations utilisées pour l'identification des risques sont pertinentes et à jour.","Choix",0,{"$f":"VLOOKUP(C42,'1- Mode d''emploi'!$L$23:$N$27,3)","v":"Libellé du critère quand il sera choisi"},null,null,null,"Choix",{"$f":"VLOOKUP(I42,'1- Mode d''emploi'!$L$23:$M$27,2)","v":0}]
[7,"Les risques associés au fait de ne pas saisir une opportunité n’ont pas été oubliés","Choix",0,{"$f":"VLOOKUP(C43,'1- Mode d''emploi'!$L$23:$N$27,3)","v":"Libellé du critère quand il sera choisi"},null,null,null,"Choix",{"$f":"VLOOKUP(I43,'1- Mode d''emploi'!$L$23:$M$27,2)","v":0}]
[8,"Il a été dressé une liste exhaustive des risques basée sur les événements susceptibles de provoquer, de stimuler, d'empêcher, de gêner, d'accélérer ou de retarder l'atteinte des objectifs. ","Choix",0,{"$f":"VLOOKUP(C44,'1- Mode d''emploi'!$L$23:$N$27,3)","v":"Libellé du critère quand il sera choisi"},null,null,null,"Choix",{"$f":"VLOOKUP(I44,'1- Mode d''emploi'!$L$23:$M$27,2)","v":0}]
["5.4.3","Analyse du risque",{"$f":"M45","v":"Insuffisant"},{"$f":"AVERAGE(D46:D57)","v":0},{"$f":"IF('4- Article 5'!D45<='1- Mode d''emploi'!$F$18,'1- Mode d''emploi'!$H$18,IF(D45<='1- Mode d''emploi'!$F$19,'1- Mode d''emploi'!$H$19,IF(D45<='1- Mode d''emploi'!$F$20,'1- Mode d''emploi'!$H$20,'1- Mode d''emploi'!$H$21)))","v":"Il est nécessaire de formaliser les pratiques"},null,null,null,"Sous-article n-2",null,null,{"$f":"D45","v":0},{"$f":"IF(L45<='1- Mode d''emploi'!$F$18,'1- Mode d''emploi'!$G$18,IF(L45<='1- Mode d''emploi'!$F$19,'1- Mode d''emploi'!$G$19,IF(L45<='1- Mode d''emploi'!$F$20,'1- Mode d''emploi'!$G$20,'1- Mode d''emploi'!$G$21)))","v":"Insuffisant"}]
[1,"Grâce à l’analyse du risque, la notion de risque est comprise","Choix",{"$f":"J46","v":0},{"$f":"VLOOKUP(C46,'1- Mode d''emploi'!$L$23:$N$27,3)","v":"Libellé du critère quand il sera choisi"},null,null,null,{"$f":"C46","v":"Choix"},{"$f":"VLOOKUP(I46,'1- Mode d''emploi'!$L$23:$M$27,2)","v":0}]
[2,"L'analyse du risque fournit des données pour évaluer les risques","Choix",{"$f":"J47","v":0},{"$f":"VLOOKUP(C47,'1- Mode d''emploi'!$L$23:$N$27,3)","v":"Libellé du critère quand il sera choisi"},null,null,null,{"$f":"C47","v":"Choix"},{"$f":"VLOOKUP(I47,'1- Mode d''emploi'!$L$23:$M$27,2)","v":0}]
[3,"L'analyse du risque fournit des données pour prendre des décisions","Choix",0,{"$f":"VLOOKUP(C48,'1- Mode d''emploi'!$L$23:$N$27,3)","v":"Libellé du critère quand il sera choisi"},null,null,null,"Choix",{"$f":"VLOOKUP(I48,'1- Mode d''emploi'!$L$23:$M$27,2)","v":0}]
[4,"L'analyse du risque permet de choisir les stratégies et méthodes de traitement les plus appropriées.","Choix",0,{"$f":"VLOOKUP(C49,'1- Mode d''emploi'!$L$23:$N$27,3)","v":"Libellé du critère quand il sera choisi"},null,null,null,"Choix",{"$f":"VLOOKUP(I49,'1- Mode d''emploi'!$L$23:$M$27,2)","v":0}]
[5,"L'analyse du risque implique la prise en compte des causes et sources de risque","Choix",0,{"$f":"VLOOKUP(C50,'1- Mode d''emploi'!$L$23:$N$27,3)","v":"Libellé du critère quand il sera choisi"},null,null,null,"Choix",{"$f":"VLOOKUP(I50,'1- Mode d''emploi'!$L$23:$M$27,2)","v":0}]
[6,"L’analyse du risque permet d’identifier les conséquences","Choix",0,{"$f":"VLOOKUP(C51,'1- Mode d''emploi'!$L$23:$N$27,3)","v":"Libellé du critère quand il sera choisi"},null,null,null,"Choix",{"$f":"VLOOKUP(I51,'1- Mode d''emploi'!$L$23:$M$27,2)","v":0}]
[7,"Les conséquences et leur vraisemblance combinées permettent de déterminer un niveau de risque aux informations disponibles et à l’objectif de l’appréciation du risque.","Choix",0,{"$f":"VLOOKUP(C52,'1- Mode d''emploi'!$L$23:$N$27,3)","v":"Libellé du critère quand il sera choisi"},null,null,null,"Choix",{"$f":"VLOOKUP(I52,'1- Mode d''emploi'!$L$23:$M$27,2)","v":0}]
[8,"La prise en compte de l’interdépendance des différents risques et leurs sources est réalisée","Choix",0,{"$f":"VLOOKUP(C53,'1- Mode d''emploi'!$L$23:$N$27,3)","v":"Libellé du critère quand il sera choisi"},null,null,null,"Choix",{"$f":"VLOOKUP(I53,'1- Mode d''emploi'!$L$23:$M$27,2)","v":0}]
[9,"le degré de confiance dans la détermination du niveau du risque et de sa sensibilité à des conditions préalables et à des hypothèses est pris en compte dans l'analyse.","Choix",0,{"$f":"VLOOKUP(C54,'1- Mode d''emploi'!$L$23:$N$27,3)","v":"Libellé du critère quand il sera choisi"},null,null,null,"Choix",{"$f":"VLOOKUP(I54,'1- Mode d''emploi'!$L$23:$M$27,2)","v":0}]
[10,"Les résultats de l’analyse sont communiqués aux décideurs et si nécessaire aux autres parties prenantes.","Choix",0,{"$f":"VLOOKUP(C55,'1- Mode d''emploi'!$L$23:$N$27,3)","v":"Libellé du critère quand il sera choisi"},null,null,null,"Choix",{"$f":"VLOOKUP(I55,'1- Mode d''emploi'!$L$23:$M$27,2)","v":0}]
[11,"Les divergences d’opinions entre experts sont mentionnées","Choix",0,{"$f":"VLOOKUP(C56,'1- Mode d''emploi'!$L$23:$N$27,3)","v":"Libellé du critère quand il sera choisi"},null,null,null,"Choix",{"$f":"VLOOKUP(I56,'1- Mode d''emploi'!$L$23:$M$27,2)","v":0}]
[12,"L’analyse du risque est menée à différents niveaux de détail en fonction du risque, de la finalité de l'analyse et des informations, des données et des ressources disponibles.","Choix",0,{"$f":"VLOOKUP(C57,'1- Mode d''emploi'!$L$23:$N$27,3)","v":"Libellé du critère quand il sera choisi"},null,null,null,"Choix",{"$f":"VLOOKUP(I57,'1- Mode d''emploi'!$L$23:$M$27,2)","v":0}]
["5.4.4","Evaluation du risque",{"$f":"M58","v":"Insuffisant"},{"$f":"AVERAGE(D59:D61)","v":0},{"$f":"IF('4- Article 5'!D58<='1- Mode d''emploi'!$F$18,'1- Mode d''emploi'!$H$18,IF(D58<='1- Mode d''emploi'!$F$19,'1- Mode d''emploi'!$H$19,IF(D58<='1- Mode d''emploi'!$F$20,'1- Mode d''emploi'!$H$20,'1- Mode d''emploi'!$H$21)))","v":"Il est nécessaire de formaliser les pratiques"},null,null,null,"Sous-article n-2",null,null,{"$f":"D58","v":0},{"$f":"IF(L58<='1- Mode d''emploi'!$F$18,'1- Mode d''emploi'!$G$18,IF(L58<='1- Mode d''emploi'!$F$19,'1- Mode d''emploi'!$G$19,IF(L58<='1- Mode d''emploi'!$F$20,'1- Mode d''emploi'!$G$20,'1- Mode d''emploi'!$G$21)))","v":"Insuffisant"}]
[1,"L'évaluation du risque a permis de comparer le niveau de risque déterminé au cours du processus d'analyse aux critères de risque établis lors de l'établissement du contexte. ","Choix",{"$f":"J59","v":0},{"$f":"VLOOKUP(C59,'1- Mode d''emploi'!$L$23:$N$27,3)","v":"Libellé du critère quand il sera choisi"},null,null,null,{"$f":"C59","v":"Choix"},{"$f":"VLOOKUP(I59,'1- Mode d''emploi'!$L$23:$M$27,2)","v":0}]
[2,"Les décisions tiennent compte du contexte élargi du risque ","Choix",{"$f":"J60","v":0},{"$f":"VLOOKUP(C60,'1- Mode d''emploi'!$L$23:$N$27,3)","v":"Libellé du critère quand il sera choisi"},null,null,null,{"$f":"C60","v":"Choix"},{"$f":"VLOOKUP(I60,'1- Mode d''emploi'!$L$23:$M$27,2)","v":0}]
[3,"Les décisions respectent les obligations légales, réglementaires et autres exigences.","Choix",0,{"$f":"VLOOKUP(C61,'1- Mode d''emploi'!$L$23:$N$27,3)","v":"Libellé du critère quand il sera choisi"},null,null,null,"Choix",{"$f":"VLOOKUP(I61,'1- Mode d''emploi'!$L$23:$M$27,2)","v":0}]
["5.5","Traitement du risque",{"$f":"M62","v":"Insuffisant"},{"$f":"AVERAGE(D63,D74,D83)","v":0},{"$f":"IF('4- Article 5'!D62<='1- Mode d''emploi'!$F$18,'1- Mode d''emploi'!$H$18,IF(D62<='1- Mode d''emploi'!$F$19,'1- Mode d''emploi'!$H$19,IF(D62<='1- Mode d''emploi'!$F$20,'1- Mode d''emploi'!$H$20,'1- Mode d''emploi'!$H$21)))","v":"Il est nécessaire de formaliser les pratiques"},null,null,null,"Sous-article n-1",null,null,{"$f":"D62","v":0},{"$f":"IF(L62<='1- Mode d''emploi'!$F$18,'1- Mode d''emploi'!$G$18,IF(L62<='1- Mode d''emploi'!$F$19,'1- Mode d''emploi'!$G$19,IF(L62<='1- Mode d''emploi'!$F$20,'1- Mode d''emploi'!$G$20,'1- Mode d''emploi'!$G$21)))","v":"Insuffisant"}]
["5.5.1","Généralités",{"$f":"M63","v":"Insuffisant"},{"$f":"AVERAGE(D64:D73)","v":0},{"$f":"IF('4- Article 5'!D63<='1- Mode d''emploi'!$F$18,'1- Mode d''emploi'!$H$18,IF(D63<='1- Mode d''emploi'!$F$19,'1- Mode d''emploi'!$H$19,IF(D63<='1- Mode d''emploi'!$F$20,'1- Mode d''emploi'!$H$20,'1- Mode d''emploi'!$H$21)))","v":"Il est nécessaire de formaliser les pratiques"},null,null,null,"Sous-article n-2",null,null,{"$f":"D63","v":0},{"$f":"IF(L63<='1- Mode d''emploi'!$F$18,'1- Mode d''emploi'!$G$18,IF(L63<='1- Mode d''emploi'!$F$19,'1- Mode d''emploi'!$G$19,IF(L63<='1- Mode d''emploi'!$F$20,'1- Mode d''emploi'!$G$20,'1- Mode d''emploi'!$G$21)))","v":"Insuffisant"}]
[1,"Une évaluation du traitement du risque est faite","Choix",{"$f":"J64","v":0},{"$f":"VLOOKUP(C64,'1- Mode d''emploi'!$L$23:$N$27,3)","v":"Libellé du critère quand il sera choisi"},null,null,null,{"$f":"C64","v":"Choix"},{"$f":"VLOOKUP(I64,'1- Mode d''emploi'!$L$23:$M$27,2)","v":0}]
[2,"Le traitement du risque permet de décider si les niveaux de risque résiduels sont tolérables","Choix",{"$f":"J65","v":0},{"$f":"VLOOKUP(C65,'1- Mode d''emploi'!$L$23:$N$27,3)","v":"Libellé du critère quand il sera choisi"},null,null,null,{"$f":"C65","v":"Choix"},{"$f":"VLOOKUP(I65,'1- Mode d''emploi'!$L$23:$M$27,2)","v":0}]
[3,"Le niveau de risque est intolérable, un nouveau traitement du risque est effectué","Choix",0,{"$f":"VLOOKUP(C66,'1- Mode d''emploi'!$L$23:$N$27,3)","v":"Libellé du critère quand il sera choisi"},null,null,null,"Choix",{"$f":"VLOOKUP(I66,'1- Mode d''emploi'!$L$23:$M$27,2)","v":0}]
[4,"Le traitement du risque a permis un refus du risque marqué par la décision de ne pas commencer ou poursuivre l'activité porteuse du risque.","Choix",0,{"$f":"VLOOKUP(C67,'1- Mode d''emploi'!$L$23:$N$27,3)","v":"Libellé du critère quand il sera choisi"},null,null,null,"Choix",{"$f":"VLOOKUP(I67,'1- Mode d''emploi'!$L$23:$M$27,2)","v":0}]
[5,"Le traitement du risque a permis la prise ou l'augmentation d'un risque afin de poursuivre une opportunité.","Choix",0,{"$f":"VLOOKUP(C68,'1- Mode d''emploi'!$L$23:$N$27,3)","v":"Libellé du critère quand il sera choisi"},null,null,null,"Choix",{"$f":"VLOOKUP(I68,'1- Mode d''emploi'!$L$23:$M$27,2)","v":0}]
[6,"Le traitement du risque a permis l'élimination de la source de risque.","Choix",0,{"$f":"VLOOKUP(C69,'1- Mode d''emploi'!$L$23:$N$27,3)","v":"Libellé du critère quand il sera choisi"},null,null,null,"Choix",{"$f":"VLOOKUP(I69,'1- Mode d''emploi'!$L$23:$M$27,2)","v":0}]
[7,"Le traitement du risque a permis une modification de la vraisemblance.","Choix",0,{"$f":"VLOOKUP(C70,'1- Mode d''emploi'!$L$23:$N$27,3)","v":"Libellé du critère quand il sera choisi"},null,null,null,"Choix",{"$f":"VLOOKUP(I70,'1- Mode d''emploi'!$L$23:$M$27,2)","v":0}]
[8,"Le traitement du risque a permis une modification des conséquences.","Choix",0,{"$f":"VLOOKUP(C71,'1- Mode d''emploi'!$L$23:$N$27,3)","v":"Libellé du critère quand il sera choisi"},null,null,null,"Choix",{"$f":"VLOOKUP(I71,'1- Mode d''emploi'!$L$23:$M$27,2)","v":0}]
[9,"Le traitement du risque a permis un partage du risque avec une autre ou d'autres parties (y compris les contrats et le financement du risque).","Choix",0,{"$f":"VLOOKUP(C72,'1- Mode d''emploi'!$L$23:$N$27,3)","v":"Libellé du critère quand il sera choisi"},null,null,null,"Choix",{"$f":"VLOOKUP(I72,'1- Mode d''emploi'!$L$23:$M$27,2)","v":0}]
[10,"Le traitement du risque a permis un maintien du risque fondé sur un choix argumenté.","Choix",0,{"$f":"VLOOKUP(C73,'1- Mode d''emploi'!$L$23:$N$27,3)","v":"Libellé du critère quand il sera choisi"},null,null,null,"Choix",{"$f":"VLOOKUP(I73,'1- Mode d''emploi'!$L$23:$M$27,2)","v":0}]
["5.5.2","Selection des options de traitement du risque",{"$f":"M74","v":"Insuffisant"},{"$f":"AVERAGE(D75:D82)","v":0},{"$f":"IF('4- Article 5'!D74<='1- Mode d''emploi'!$F$18,'1- Mode d''emploi'!$H$18,IF(D74<='1- Mode d''emploi'!$F$19,'1- Mode d''emploi'!$H$19,IF(D74<='1- Mode d''emploi'!$F$20,'1- Mode d''emploi'!$H$20,'1- Mode d''emploi'!$H$21)))","v":"Il est nécessaire de formaliser les pratiques"},null,null,null,"Sous-article n-2",null,null,{"$f":"D74","v":0},{"$f":"IF(L74<='1- Mode d''emploi'!$F$18,'1- Mode d''emploi'!$G$18,IF(L74<='1- Mode d''emploi'!$F$19,'1- Mode d''emploi'!$G$19,IF(L74<='1- Mode d''emploi'!$F$20,'1- Mode d''emploi'!$G$20,'1- Mode d''emploi'!$G$21)))","v":"Insuffisant"}]
[1,"Les décisions tiennent compte des risques dont le traitement n'est pas justifiable au plan économique.","Choix",{"$f":"J75","v":0},{"$f":"VLOOKUP(C75,'1- Mode d''emploi'!$L$23:$N$27,3)","v":"Libellé du critère quand il sera choisi"},null,null,null,{"$f":"C75","v":"Choix"},{"$f":"VLOOKUP(I75,'1- Mode d''emploi'!$L$23:$M$27,2)","v":0}]
[2,"Un certain nombre d'options de traitement peuvent être examinées et appliquées individuellement ou en combinaison. Normalement l'organisme peut tirer avantage de l'adoption d'une combinaison d'options de traitement.","Choix",{"$f":"J76","v":0},{"$f":"VLOOKUP(C76,'1- Mode d''emploi'!$L$23:$N$27,3)","v":"Libellé du critère quand il sera choisi"},null,null,null,{"$f":"C76","v":"Choix"},{"$f":"VLOOKUP(I76,'1- Mode d''emploi'!$L$23:$M$27,2)","v":0}]
[3,"Lors du choix des options de traitement du risque, l'organisme tient compte des valeurs et des perceptions des parties prenantes.","Choix",0,{"$f":"VLOOKUP(C77,'1- Mode d''emploi'!$L$23:$N$27,3)","v":"Libellé du critère quand il sera choisi"},null,null,null,"Choix",{"$f":"VLOOKUP(I77,'1- Mode d''emploi'!$L$23:$M$27,2)","v":0}]
[4,"Lorsque les options de traitement du risque peuvent avoir un impact n'importe où au sein de l'organisme ou chez les parties prenantes, les parties prenantes sont impliquées dans la décision.","Choix",0,{"$f":"VLOOKUP(C78,'1- Mode d''emploi'!$L$23:$N$27,3)","v":"Libellé du critère quand il sera choisi"},null,null,null,"Choix",{"$f":"VLOOKUP(I78,'1- Mode d''emploi'!$L$23:$M$27,2)","v":0}]
[5,"Le plan de traitement identifie clairement l'ordre des priorités de mise en œuvre des traitements individuels du risque.","Choix",0,{"$f":"VLOOKUP(C79,'1- Mode d''emploi'!$L$23:$N$27,3)","v":"Libellé du critère quand il sera choisi"},null,null,null,"Choix",{"$f":"VLOOKUP(I79,'1- Mode d''emploi'!$L$23:$M$27,2)","v":0}]
[6,"Pour s'assurer que les mesures restent efficaces, la surveillance fait partie intégrante du plan de traitement du risque.","Choix",0,{"$f":"VLOOKUP(C80,'1- Mode d''emploi'!$L$23:$N$27,3)","v":"Libellé du critère quand il sera choisi"},null,null,null,"Choix",{"$f":"VLOOKUP(I80,'1- Mode d''emploi'!$L$23:$M$27,2)","v":0}]
[7,"Les risques secondaires sont intégrés au même plan de traitement que le risque original et ne sont pas traités en tant que nouveau risque. ","Choix",0,{"$f":"VLOOKUP(C81,'1- Mode d''emploi'!$L$23:$N$27,3)","v":"Libellé du critère quand il sera choisi"},null,null,null,"Choix",{"$f":"VLOOKUP(I81,'1- Mode d''emploi'!$L$23:$M$27,2)","v":0}]
[8,"Le lien entre les deux risques est identifié et fait l'objet d'un suivi.","Choix",0,{"$f":"VLOOKUP(C82,'1- Mode d''emploi'!$L$23:$N$27,3)","v":"Libellé du critère quand il sera choisi"},null,null,null,"Choix",{"$f":"VLOOKUP(I82,'1- Mode d''emploi'!$L$23:$M$27,2)","v":0}]
["5.5.3","Élaboration et mise en œuvre des plans de traitement du risque",{"$f":"M83","v":"Insuffisant"},{"$f":"AVERAGE(D84:D94)","v":0},{"$f":"IF('4- Article 5'!D83<='1- Mode d''emploi'!$F$18,'1- Mode d''emploi'!$H$18,IF(D83<='1- Mode d''emploi'!$F$19,'1- Mode d''emploi'!$H$19,IF(D83<='1- Mode d''emploi'!$F$20,'1- Mode d''emploi'!$H$20,'1- Mode d''emploi'!$H$21)))","v":"Il est nécessaire de formaliser les pratiques"},null,null,null,"Sous-article n-2",null,null,{"$f":"D83","v":0},{"$f":"IF(L83<='1- Mode d''emploi'!$F$18,'1- Mode d''emploi'!$G$18,IF(L83<='1- Mode d''emploi'!$F$19,'1- Mode d''emploi'!$G$19,IF(L83<='1- Mode d''emploi'!$F$20,'1- Mode d''emploi'!$G$20,'1- Mode d''emploi'!$G$21)))","v":"Insuffisant"}]
[1,"Les plans de traitement du risque sont destinés à documenter la manière dont les options de traitement choisies sont mises en œuvre. ","Choix",{"$f":"J84","v":0},{"$f":"VLOOKUP(C84,'1- Mode d''emploi'!$L$23:$N$27,3)","v":"Libellé du critère quand il sera choisi"},null,null,null,{"$f":"C84","v":"Choix"},{"$f":"VLOOKUP(I84,'1- Mode d''emploi'!$L$23:$M$27,2)","v":0}]
[2,"Le plan de traitement comporte les raisons ayant motivé le choix des options de traitement et les avantages attendus.","Choix",{"$f":"J85","v":0},{"$f":"VLOOKUP(C85,'1- Mode d''emploi'!$L$23:$N$27,3)","v":"Libellé du critère quand il sera choisi"},null,null,null,{"$f":"C85","v":"Choix"},{"$f":"VLOOKUP(I85,'1- Mode d''emploi'!$L$23:$M$27,2)","v":0}]
[3,"Le plan de traitement comprend les personnes responsables de l'approbation du plan.  ","Choix",0,{"$f":"VLOOKUP(C86,'1- Mode d''emploi'!$L$23:$N$27,3)","v":"Libellé du critère quand il sera choisi"},null,null,null,"Choix",{"$f":"VLOOKUP(I86,'1- Mode d''emploi'!$L$23:$M$27,2)","v":0}]
[4,"Le plan de traitement comprend les personnes responsables de sa mise en œuvre.","Choix",0,{"$f":"VLOOKUP(C87,'1- Mode d''emploi'!$L$23:$N$27,3)","v":"Libellé du critère quand il sera choisi"},null,null,null,"Choix",{"$f":"VLOOKUP(I87,'1- Mode d''emploi'!$L$23:$M$27,2)","v":0}]
[5,"Le plan de traitement comporte les actions proposées.","Choix",0,{"$f":"VLOOKUP(C88,'1- Mode d''emploi'!$L$23:$N$27,3)","v":"Libellé du critère quand il sera choisi"},null,null,null,"Choix",{"$f":"VLOOKUP(I88,'1- Mode d''emploi'!$L$23:$M$27,2)","v":0}]
[6,"Le plan de traitement comporte les besoins en ressources, en tenant compte des impondérables.","Choix",0,{"$f":"VLOOKUP(C89,'1- Mode d''emploi'!$L$23:$N$27,3)","v":"Libellé du critère quand il sera choisi"},null,null,null,"Choix",{"$f":"VLOOKUP(I89,'1- Mode d''emploi'!$L$23:$M$27,2)","v":0}]
[7,"Le plan de traitement comporte la mesure des performances et les contraintes.","Choix",0,{"$f":"VLOOKUP(C90,'1- Mode d''emploi'!$L$23:$N$27,3)","v":"Libellé du critère quand il sera choisi"},null,null,null,"Choix",{"$f":"VLOOKUP(I90,'1- Mode d''emploi'!$L$23:$M$27,2)","v":0}]
[8,"Le plan de traitement comporte les exigences en matière de rapports et de surveillance.","Choix",0,{"$f":"VLOOKUP(C91,'1- Mode d''emploi'!$L$23:$N$27,3)","v":"Libellé du critère quand il sera choisi"},null,null,null,"Choix",{"$f":"VLOOKUP(I91,'1- Mode d''emploi'!$L$23:$M$27,2)","v":0}]
[9,"Le plan de traitement comporte le calendrier et le séquencement.","Choix",0,{"$f":"VLOOKUP(C92,'1- Mode d''emploi'!$L$23:$N$27,3)","v":"Libellé du critère quand il sera choisi"},null,null,null,"Choix",{"$f":"VLOOKUP(I92,'1- Mode d''emploi'!$L$23:$M$27,2)","v":0}]
[10,"Les plans de traitement sont intégrés aux processus de management de l'organisme.","Choix",0,{"$f":"VLOOKUP(C93,'1- Mode d''emploi'!$L$23:$N$27,3)","v":"Libellé du critère quand il sera choisi"},null,null,null,"Choix",{"$f":"VLOOKUP(I93,'1- Mode d''emploi'!$L$23:$M$27,2)","v":0}]
[11,"Les plans de traitement sont discutés avec les parties prenantes appropriées.","Choix",0,{"$f":"VLOOKUP(C94,'1- Mode d''emploi'!$L$23:$N$27,3)","v":"Libellé du critère quand il sera choisi"},null,null,null,"Choix",{"$f":"VLOOKUP(I94,'1- Mode d''emploi'!$L$23:$M$27,2)","v":0}]
["5.6","Surveillance et revue",{"$f":"M95","v":"Insuffisant"},{"$f":"L95","v":0},{"$f":"IF('4- Article 5'!D95<='1- Mode d''emploi'!$F$18,'1- Mode d''emploi'!$H$18,IF(D95<='1- Mode d''emploi'!$F$19,'1- Mode d''emploi'!$H$19,IF(D95<='1- Mode d''emploi'!$F$20,'1- Mode d''emploi'!$H$20,'1- Mode d''emploi'!$H$21)))","v":"Il est nécessaire de formaliser les pratiques"},null,null,null,"Sous-article n-1",null,null,{"$f":"SUM(L96:L102)","v":0},{"$f":"IF(L95<='1- Mode d''emploi'!$F$18,'1- Mode d''emploi'!$G$18,IF(L95<='1- Mode d''emploi'!$F$19,'1- Mode d''emploi'!$G$19,IF(L95<='1- Mode d''emploi'!$F$20,'1- Mode d''emploi'!$G$20,'1- Mode d''emploi'!$G$21)))","v":"Insuffisant"}]
[1,"Vous planifiez, à intervalle de temps régulier, la surveillance de votre plan de management des risques. ","Choix",{"$f":"J96","v":0},{"$f":"VLOOKUP(C96,'1- Mode d''emploi'!$L$23:$N$27,3)","v":"Libellé du critère quand il sera choisi"},null,null,null,{"$f":"C96","v":"Choix"},{"$f":"VLOOKUP(I96,'1- Mode d''emploi'!$L$23:$M$27,2)","v":0},{"$f":"1/7","v":0.14285714285714285},{"$f":"IFERROR(K96*J96,\"\")","v":0}]
[2,"Votre surveillance s’applique à tous niveaux du processus du management des risques.","Choix",{"$f":"J97","v":0},{"$f":"VLOOKUP(C97,'1- Mode d''emploi'!$L$23:$N$27,3)","v":"Libellé du critère quand il sera choisi"},null,null,null,{"$f":"C97","v":"Choix"},{"$f":"VLOOKUP(I97,'1- Mode d''emploi'!$L$23:$M$27,2)","v":0},{"$f":"1/7","v":0.14285714285714285},{"$f":"IFERROR(K97*J97,\"\")","v":0}]
[3,"Vous suivez, analysez et rapportez les progrès réalisés à la direction.","Choix",0,{"$f":"VLOOKUP(C98,'1- Mode d''emploi'!$L$23:$N$27,3)","v":"Libellé du critère quand il sera choisi"},null,null,null,"Choix",{"$f":"VLOOKUP(I98,'1- Mode d''emploi'!$L$23:$M$27,2)","v":0},0.14285714285714285,0]
[4,"Vous validez périodiquement les rapports sur les progrès et les performances réalisés dans un processus de revue objectif et impartial. ","Choix",0,{"$f":"VLOOKUP(C99,'1- Mode d''emploi'!$L$23:$N$27,3)","v":"Libellé du critère quand il sera choisi"},null,null,null,"Choix",{"$f":"VLOOKUP(I99,'1- Mode d''emploi'!$L$23:$M$27,2)","v":0},0.14285714285714285,0]
[5,"Vous avez défini les responsabilités de surveillance et de revue. ","Choix",0,{"$f":"VLOOKUP(C100,'1- Mode d''emploi'!$L$23:$N$27,3)","v":"Libellé du critère quand il sera choisi"},null,null,null,"Choix",{"$f":"VLOOKUP(I100,'1- Mode d''emploi'!$L$23:$M$27,2)","v":0},0.14285714285714285,0]
[6,"Vous enregistrez les résultats de la surveillance et de la revue.","Choix",0,{"$f":"VLOOKUP(C101,'1- Mode d''emploi'!$L$23:$N$27,3)","v":"Libellé du critère quand il sera choisi"},null,null,null,"Choix",{"$f":"VLOOKUP(I101,'1- Mode d''emploi'!$L$23:$M$27,2)","v":0},0.14285714285714285,0]
[7,"Les résultats sont pris en compte pour améliorer le cadre organisationnel et la gestion des risques.","Choix",0,{"$f":"VLOOKUP(C102,'1- Mode d''emploi'!$L$23:$N$27,3)","v":"Libellé du critère quand il sera choisi"},null,null,null,"Choix",{"$f":"VLOOKUP(I102,'1- Mode d''emploi'!$L$23:$M$27,2)","v":0},0.14285714285714285,0]
["5.7","Enregistrement du processus de management du risque",{"$f":"M103","v":"Insuffisant"},{"$f":"L103","v":0},{"$f":"IF('4- Article 5'!D103<='1- Mode d''emploi'!$F$18,'1- Mode d''emploi'!$H$18,IF(D103<='1- Mode d''emploi'!$F$19,'1- Mode d''emploi'!$H$19,IF(D103<='1- Mode d''emploi'!$F$20,'1- Mode d''emploi'!$H$20,'1- Mode d''emploi'!$H$21)))","v":"Il est nécessaire de formaliser les pratiques"},null,null,null,"Sous-article n-1",null,null,{"$f":"SUM(L104:L109)","v":0},{"$f":"IF(L103<='1- Mode d''emploi'!$F$18,'1- Mode d''emploi'!$G$18,IF(L103<='1- Mode d''emploi'!$F$19,'1- Mode d''emploi'!$G$19,IF(L103<='1- Mode d''emploi'!$F$20,'1- Mode d''emploi'!$G$20,'1- Mode d''emploi'!$G$21)))","v":"Insuffisant"}]
[1,"Les activités de management du risque sont tracées et enregistrées ","Choix",{"$f":"J104","v":0},{"$f":"VLOOKUP(C104,'1- Mode d''emploi'!$L$23:$N$27,3)","v":"Libellé du critère quand il sera choisi"},null,null,null,{"$f":"C104","v":"Choix"},{"$f":"VLOOKUP(I104,'1- Mode d''emploi'!$L$23:$M$27,2)","v":0},{"$f":"1/6","v":0.16666666666666666},{"$f":"IFERROR(K104*J104,\"\")","v":0}]
[2,"Les coûts et le travail liés à la création des enregistrements sont pris en compte. ","Choix",{"$f":"J105","v":0},{"$f":"VLOOKUP(C105,'1- Mode d''emploi'!$L$23:$N$27,3)","v":"Libellé du critère quand il sera choisi"},null,null,null,{"$f":"C105","v":"Choix"},{"$f":"VLOOKUP(I105,'1- Mode d''emploi'!$L$23:$M$27,2)","v":0},{"$f":"1/6","v":0.16666666666666666},0]
[3,"La période de conservation est définie.","Choix",0,{"$f":"VLOOKUP(C106,'1- Mode d''emploi'!$L$23:$N$27,3)","v":"Libellé du critère quand il sera choisi"},null,null,null,"Choix",{"$f":"VLOOKUP(I106,'1- Mode d''emploi'!$L$23:$M$27,2)","v":0},0.16666666666666666,0]
[4,"La méthode d’accès, la facilité de consultation et le moyen de stockage sont définis.","Choix",0,{"$f":"VLOOKUP(C107,'1- Mode d''emploi'!$L$23:$N$27,3)","v":"Libellé du critère quand il sera choisi"},null,null,null,"Choix",{"$f":"VLOOKUP(I107,'1- Mode d''emploi'!$L$23:$M$27,2)","v":0},0.16666666666666666,0]
[5,"Vous avez conscience de la nécessité légale et réglementaire de réaliser des enregistrements.","Choix",0,{"$f":"VLOOKUP(C108,'1- Mode d''emploi'!$L$23:$N$27,3)","v":"Libellé du critère quand il sera choisi"},null,null,null,"Choix",{"$f":"VLOOKUP(I108,'1- Mode d''emploi'!$L$23:$M$27,2)","v":0},0.16666666666666666,0]
[6,"Vous utilisez ces enregistrements pour améliorer votre gestion du risque.","Choix",0,{"$f":"VLOOKUP(C109,'1- Mode d''emploi'!$L$23:$N$27,3)","v":"Libellé du critère quand il sera choisi"},null,null,null,"Choix",{"$f":"VLOOKUP(I109,'1- Mode d''emploi'!$L$23:$M$27,2)","v":0},0.16666666666666666,0]

{"sheet":"5- Résultats Article 4","index":4,"n_rows":33,"n_cols":8,"rows_kept":33,"cut":false,"hidden":false,"merged":[[32,2,32,4],[12,0,12,4],[12,5,12,7],[13,5,13,7],[14,5,14,7],[27,1,27,4],[28,2,28,4],[29,2,29,4],[30,2,30,4],[31,2,31,4],[27,0,32,0],[25,0,25,7],[7,6,7,7],[8,4,8,5],[19,6,19,7],[21,6,21,7],[22,6,22,7],[8,2,8,3],[23,6,23,7],[1,3,2,5],[17,6,17,7],[18,6,18,7],[11,0,11,7],[5,0,5,1],[5,2,5,3],[5,4,5,5],[5,6,5,7],[6,0,6,1],[6,2,6,3],[6,4,6,5],[6,6,6,7],[7,2,7,3],[7,4,7,5]]}
[{"$f":"'1- Mode d''emploi'!A1","v":"Document d'autodiagnostic en référence à la norme ISO 31000:2009"}]
[null,null,null,"Résultats de l'Article 4 de l'ISO 31000:2009"]
[]
[]
[null,null,"Informations sur le Service management de la qualité",null,null,null,"Informations sur l'Autodiagnostic"]
["Responsable du SMQ :",null,{"$f":"'1- Mode d''emploi'!$M$28","v":"-"},null,"Date de l'autodiagnostic : (dd/jj/aaaa)"]
["Contact du responsable du SMQ :",null,{"$f":"'1- Mode d''emploi'!$M$29","v":"-"},null,"Responsable de l'évaluation :"]
[null,null,"Tel:",null,"L'équipe d'évaluation :"]
[null,null,null,null,"Contact du responsable : ",null,"Tel :","@ :"]
[]
[]
["BILAN, COMMENTAIRES,PLANS D'ACTION d'amélioration et REX "]
["Taux de Respect des exigences de l'Article 4 de la norme :",null,null,null,null,"COMMENTAIRES sur les RÉSULTATS obtenus"]
[null,{"$f":"G28","v":0},{"$f":"F28","v":"Insuffisant"},null,null,"Commentaires (collectifs si possible)  :"]
[null,null,null,null,null,"DÉCISIONS : Plans d'action PRIORITAIRES"]
[null,null,null,null,null,"QUOI\nObjectifs à atteindre","QUI\nen Interne ou en Externe","QUAND\nDates début et fin"]
[null,null,null,null,null,"Plan n°1 :"]
[null,null,null,null,null,"Efficacité"]
[null,null,null,null,null,"Efficience"]
[null,null,null,null,null,"Qualité pércue"]
[null,null,null,null,null,"    Plan n°2:"]
[null,null,null,null,null,"Efficacité"]
[null,null,null,null,null,"Efficience"]
[null,null,null,null,null,"Qualité pércue"]
[]
["TABLEAU de SYNTHÈSE des RÉSULTATS moyennés de l'évaluation qaunt au degré de réalisation des actions associées au respect des exigences  de la norme ISO 31000:2009"]
[null,null,null,null,null,{"$f":"'[1]Chapitre 4'!C9","v":"Evaluations"},{"$f":"'[1]Chapitre 4'!D9","v":"Taux %"},"Niveaux de Respect"]
["Art. 4",{"$f":"'[2]Chapitre 4'!B10","v":"Contexte de l'organisme"},null,null,null,{"$f":"'3- Article 4'!$C$10","v":"Insuffisant"},{"$f":"'3- Article 4'!$D$10","v":0},{"$f":"IF('5- Résultats Article 4'!G28<='1- Mode d''emploi'!$F$18,'1- Mode d''emploi'!$H$18,IF(G28<='1- Mode d''emploi'!$F$19,'1- Mode d''emploi'!$H$19,IF(G28<='1- Mode d''emploi'!$F$20,'1- Mode d''emploi'!$H$20,'1- Mode d''emploi'!$H$21)))","v":"Il est nécessaire de formaliser les pratiques"}]
[null,{"$f":"'3- Article 4'!$A$11","v":"4.2"},{"$f":"'3- Article 4'!$B$11","v":"Mandat et engagement"},null,null,{"$f":"'3- Article 4'!$C$11","v":"Insuffisant"},{"$f":"'3- Article 4'!$D$11","v":0},{"$f":"IF('5- Résultats Article 4'!G29<='1- Mode d''emploi'!$F$18,'1- Mode d''emploi'!$H$18,IF(G29<='1- Mode d''emploi'!$F$19,'1- Mode d''emploi'!$H$19,IF(G29<='1- Mode d''emploi'!$F$20,'1- Mode d''emploi'!$H$20,'1- Mode d''emploi'!$H$21)))","v":"Il est nécessaire de formaliser les pratiques"}]
[null,{"$f":"'3- Article 4'!$A$21","v":"4.3"},{"$f":"'3- Article 4'!$B$21","v":"Conception du cadre organisationnel de management du risque"},null,null,{"$f":"'3- Article 4'!$C$21","v":"Insuffisant"},{"$f":"'3- Article 4'!$D$21","v":0},{"$f":"IF('5- Résultats Article 4'!G30<='1- Mode d''emploi'!$F$18,'1- Mode d''emploi'!$H$18,IF(G30<='1- Mode d''emploi'!$F$19,'1- Mode d''emploi'!$H$19,IF(G30<='1- Mode d''emploi'!$F$20,'1- Mode d''emploi'!$H$20,'1- Mode d''emploi'!$H$21)))","v":"Il est nécessaire de formaliser les pratiques"}]
[null,"4.4","Mise en œuvre",null,null,{"$f":"'3- Article 4'!$C$69","v":"Insuffisant"},{"$f":"'3- Article 4'!$D$69","v":0},{"$f":"IF('5- Résultats Article 4'!G31<='1- Mode d''emploi'!$F$18,'1- Mode d''emploi'!$H$18,IF(G31<='1- Mode d''emploi'!$F$19,'1- Mode d''emploi'!$H$19,IF(G31<='1- Mode d''emploi'!$F$20,'1- Mode d''emploi'!$H$20,'1- Mode d''emploi'!$H$21)))","v":"Il est nécessaire de formaliser les pratiques"}]
[null,"4.5","Surveillance et revue",null,null,{"$f":"'3- Article 4'!$C$79","v":"Insuffisant"},{"$f":"'3- Article 4'!$D$79","v":0},{"$f":"IF('5- Résultats Article 4'!G32<='1- Mode d''emploi'!$F$18,'1- Mode d''emploi'!$H$18,IF(G32<='1- Mode d''emploi'!$F$19,'1- Mode d''emploi'!$H$19,IF(G32<='1- Mode d''emploi'!$F$20,'1- Mode d''emploi'!$H$20,'1- Mode d''emploi'!$H$21)))","v":"Il est nécessaire de formaliser les pratiques"}]
[null,"4.6","Amélioration continue",null,null,{"$f":"'3- Article 4'!$C$85","v":"Insuffisant"},{"$f":"'3- Article 4'!D85","v":0},{"$f":"IF('5- Résultats Article 4'!G33<='1- Mode d''emploi'!$F$18,'1- Mode d''emploi'!$H$18,IF(G33<='1- Mode d''emploi'!$F$19,'1- Mode d''emploi'!$H$19,IF(G33<='1- Mode d''emploi'!$F$20,'1- Mode d''emploi'!$H$20,'1- Mode d''emploi'!$H$21)))","v":"Il est nécessaire de formaliser les pratiques"}]

{"sheet":"6- Résultats Article 5","index":5,"n_rows":35,"n_cols":8,"rows_kept":35,"cut":false,"hidden":false,"merged":[[11,0,11,7],[5,0,5,1],[5,2,5,3],[5,4,5,5],[5,6,5,7],[6,0,6,1],[6,2,6,3],[6,4,6,5],[6,6,6,7],[7,2,7,3],[7,4,7,5],[7,6,7,7],[8,2,8,3],[8,4,8,5],[12,0,12,4],[12,5,12,7],[13,5,13,7],[14,5,14,7],[21,6,21,7],[22,6,22,7],[23,6,23,7],[17,6,17,7],[18,6,18,7],[19,6,19,7],[32,2,32,4],[25,0,25,7],[27,0,34,0],[27,1,27,4],[28,2,28,4],[29,2,29,4],[30,2,30,4],[33,2,33,4],[34,2,34,4],[31,2,31,4]]}
[{"$f":"'1- Mode d''emploi'!A1","v":"Document d'autodiagnostic en référence à la norme ISO 31000:2009"}]
[null,null,null,null,"Résultats de l'Article 5 de l'ISO 31000:2009"]
[]
[]
[null,null,"Informations sur le Service management de la qualité",null,null,null,"Informations sur l'Autodiagnostic"]
["Responsable du SMQ :",null,{"$f":"'1- Mode d''emploi'!$M$28","v":"-"},null,"Date de l'autodiagnostic : (dd/jj/aaaa)"]
["Contact du responsable du SMQ :",null,{"$f":"'1- Mode d''emploi'!$M$29","v":"-"},null,"Responsable de l'évaluation :"]
[null,null,"Tel:",null,"L'équipe d'évaluation :"]
[null,null,null,null,"Contact du responsable : ",null,"Tel :","@ :"]
[]
[]
["BILAN, COMMENTAIRES,PLANS D'ACTION d'amélioration et REX "]
["Taux de Respect aux exigences de l'Article 5 de la norme :",null,null,null,null,"COMMENTAIRES sur les RÉSULTATS obtenus"]
[null,{"$f":"G28","v":0},{"$f":"F28","v":"Insuffisant"},null,null,"Commentaires (collectifs si possible)  :"]
[null,null,null,null,null,"DÉCISIONS : Plans d'action PRIORITAIRES"]
[null,null,null,null,null,"QUOI\nObjectifs à atteindre","QUI\nen Interne ou en Externe","QUAND\nDates début et fin"]
[null,null,null,null,null,"Plan n°1 :"]
[null,null,null,null,null,"Efficacité"]
[null,null,null,null,null,"Efficience"]
[null,null,null,null,null,"Qualité pércue"]
[null,null,null,null,null,"   Plan n°2 :"]
[null,null,null,null,null,"   Efficacité"]
[null,null,null,null,null,"   Efficience"]
[null,null,null,null,null,"   Qualité pércue"]
[]
["TABLEAU de SYNTHÈSE des RÉSULTATS moyennés de l'évaluation qaunt au degré de réalisation des actions associées au respect des exigences  de la norme ISO 31000:2009"]
[null,null,null,null,null,{"$f":"'[1]Chapitre 4'!C9","v":"Evaluations"},{"$f":"'[1]Chapitre 4'!D9","v":"Taux %"},"Niveaux de Respect"]
["Art. 5","Processus",null,null,null,{"$f":"'4- Article 5'!$C$10","v":"Insuffisant"},{"$f":"'4- Article 5'!$D$10","v":0},{"$f":"IF('6- Résultats Article 5'!G28<='1- Mode d''emploi'!$F$18,'1- Mode d''emploi'!$H$18,IF(G28<='1- Mode d''emploi'!$F$19,'1- Mode d''emploi'!$H$19,IF(G28<='1- Mode d''emploi'!$F$20,'1- Mode d''emploi'!$H$20,'1- Mode d''emploi'!$H$21)))","v":"Il est nécessaire de formaliser les pratiques"}]
[null,"5.1",{"$f":"'4- Article 5'!$B$11","v":"Généralités"},null,null,{"$f":"'4- Article 5'!$C$11","v":"Insuffisant"},{"$f":"'4- Article 5'!$D$11","v":0},{"$f":"IF('6- Résultats Article 5'!G29<='1- Mode d''emploi'!$F$18,'1- Mode d''emploi'!$H$18,IF(G29<='1- Mode d''emploi'!$F$19,'1- Mode d''emploi'!$H$19,IF(G29<='1- Mode d''emploi'!$F$20,'1- Mode d''emploi'!$H$20,'1- Mode d''emploi'!$H$21)))","v":"Il est nécessaire de formaliser les pratiques"}]
[null,"5.2",{"$f":"'4- Article 5'!$B$15","v":"Communication et concertation"},null,null,{"$f":"'4- Article 5'!$C$15","v":"Insuffisant"},{"$f":"'4- Article 5'!$D$15","v":0},{"$f":"IF('6- Résultats Article 5'!G30<='1- Mode d''emploi'!$F$18,'1- Mode d''emploi'!$H$18,IF(G30<='1- Mode d''emploi'!$F$19,'1- Mode d''emploi'!$H$19,IF(G30<='1- Mode d''emploi'!$F$20,'1- Mode d''emploi'!$H$20,'1- Mode d''emploi'!$H$21)))","v":"Il est nécessaire de formaliser les pratiques"}]
[null,"5.3",{"$f":"'4- Article 5'!$B$19","v":"Etablissement du contexte"},null,null,{"$f":"'4- Article 5'!$C$19","v":"Insuffisant"},{"$f":"'4- Article 5'!$D$19","v":0},{"$f":"IF('6- Résultats Article 5'!G31<='1- Mode d''emploi'!$F$18,'1- Mode d''emploi'!$H$18,IF(G31<='1- Mode d''emploi'!$F$19,'1- Mode d''emploi'!$H$19,IF(G31<='1- Mode d''emploi'!$F$20,'1- Mode d''emploi'!$H$20,'1- Mode d''emploi'!$H$21)))","v":"Il est nécessaire de formaliser les pratiques"}]
[null,"5.4",{"$f":"'4- Article 5'!$B$35","v":"Appréciation du risque"},null,null,{"$f":"'4- Article 5'!$C$35","v":"Insuffisant"},{"$f":"'4- Article 5'!$D$35","v":0},{"$f":"IF('6- Résultats Article 5'!G32<='1- Mode d''emploi'!$F$18,'1- Mode d''emploi'!$H$18,IF(G32<='1- Mode d''emploi'!$F$19,'1- Mode d''emploi'!$H$19,IF(G32<='1- Mode d''emploi'!$F$20,'1- Mode d''emploi'!$H$20,'1- Mode d''emploi'!$H$21)))","v":"Il est nécessaire de formaliser les pratiques"}]
[null,"5.5",{"$f":"'4- Article 5'!$B$62","v":"Traitement du risque"},null,null,{"$f":"'4- Article 5'!$C$62","v":"Insuffisant"},{"$f":"'4- Article 5'!$D$62","v":0},{"$f":"IF('6- Résultats Article 5'!G33<='1- Mode d''emploi'!$F$18,'1- Mode d''emploi'!$H$18,IF(G33<='1- Mode d''emploi'!$F$19,'1- Mode d''emploi'!$H$19,IF(G33<='1- Mode d''emploi'!$F$20,'1- Mode d''emploi'!$H$20,'1- Mode d''emploi'!$H$21)))","v":"Il est nécessaire de formaliser les pratiques"}]
[null,"5.6",{"$f":"'4- Article 5'!$B$95","v":"Surveillance et revue"},null,null,{"$f":"'4- Article 5'!$C$95","v":"Insuffisant"},{"$f":"'4- Article 5'!$D$95","v":0},{"$f":"IF('6- Résultats Article 5'!G34<='1- Mode d''emploi'!$F$18,'1- Mode d''emploi'!$H$18,IF(G34<='1- Mode d''emploi'!$F$19,'1- Mode d''emploi'!$H$19,IF(G34<='1- Mode d''emploi'!$F$20,'1- Mode d''emploi'!$H$20,'1- Mode d''emploi'!$H$21)))","v":"Il est nécessaire de formaliser les pratiques"}]
[null,"5.7",{"$f":"'4- Article 5'!$B$103","v":"Enregistrement du processus de management du risque"},null,null,{"$f":"'4- Article 5'!$C$103","v":"Insuffisant"},{"$f":"'4- Article 5'!$D$103","v":0},{"$f":"IF('6- Résultats Article 5'!G35<='1- Mode d''emploi'!$F$18,'1- Mode d''emploi'!$H$18,IF(G35<='1- Mode d''emploi'!$F$19,'1- Mode d''emploi'!$H$19,IF(G35<='1- Mode d''emploi'!$F$20,'1- Mode d''emploi'!$H$20,'1- Mode d''emploi'!$H$21)))","v":"Il est nécessaire de formaliser les pratiques"}]

{"sheet":"7- Résultat Global","index":6,"n_rows":54,"n_cols":15,"rows_kept":54,"cut":false,"hidden":false,"merged":[[8,4,8,5],[24,0,24,4],[24,5,24,7],[11,0,11,3],[10,0,10,7],[5,0,5,1],[5,2,5,3],[5,4,5,5],[5,6,5,7],[6,0,6,1],[6,2,6,3],[6,4,6,5],[6,6,6,7],[7,2,7,3],[7,4,7,5],[7,6,7,7],[8,2,8,3],[25,5,25,7],[26,5,26,7],[37,0,37,7],[44,2,44,4],[39,0,44,0],[42,2,42,4],[43,2,43,4],[39,1,39,4],[35,6,35,7],[34,0,35,4],[29,6,29,7],[30,6,30,7],[31,6,31,7],[33,6,33,7],[34,6,34,7],[4,0,4,3],[45,0,52,0],[45,1,45,4],[48,2,48,4],[49,2,49,4],[40,2,40,4],[41,2,41,4],[52,2,52,4],[46,2,46,4],[50,2,50,4],[51,2,51,4],[47,2,47,4],[13,0,13,3],[11,4,11,7],[18,0,18,3],[23,0,23,7]]}
[null,null,null,null,null,null,null,"Impression sur pages A4 100% en format horizontal"]
[null,null,null,null,"   Autodiagnostic  de la norme ISO 31000:2009"]
[]
[]
["Informations sur le Service management de la qualité",null,null,null,null,null,"Informations sur l'Autodiagnostic"]
["Responsable du SMQ :",null,{"$f":"'1- Mode d''emploi'!$M$28","v":"-"},null,"Date de l'autodiagnostic : (dd/jj/aaaa)"]
["Contact du responsable du SMQ :",null,{"$f":"'1- Mode d''emploi'!$M$29","v":"-"},null,"Responsable de l'évaluation :"]
[null,null,"Tel:",null,"L'équipe d'évaluation :"]
[null,null,"@:",null,"Contact du responsable : ",null,"Tel :","@ :"]
[]
["TABLEAUX DE BORD sur le niveau de Respect et de réalisation selon la norme ISO 31000:2009"]
[null,null,null,null,"Niveau de Respect des ARTICLES de la norme"]
[]
["Niveaux de Respect des 12 SOUS-ARTICLES de la norme",null,null,null,null,null,null,null,null,null,null,{"$f":"SUM(L15:L18)","v":12}]
[null,null,null,null,null,null,null,null,null,null,"Insuffisant",{"$f":"COUNTIFS($F$41:$F$45,K15)+COUNTIFS($F$47:$F$53,K15)","v":12},null,{"$f":"'1- Mode d''emploi'!L24","v":"FAUX"},{"$f":"COUNTIFS('3- Article 4'!$I$12:$I$88,N15)+COUNTIFS('4- Article 5'!$I$12:$I$109,N15)","v":0}]
[null,null,null,null,null,null,null,null,null,null,"Informel",{"$f":"COUNTIFS($F$41:$F$45,K16)+COUNTIFS($F$47:$F$53,K16)","v":0},null,{"$f":"'1- Mode d''emploi'!L25","v":"Plutôt Faux"},{"$f":"COUNTIFS('3- Article 4'!$I$12:$I$88,N16)+COUNTIFS('4- Article 5'!$I$12:$I$109,N16)","v":0}]
[null,null,null,null,null,null,null,null,null,null,"Convaincant",0,null,{"$f":"'1- Mode d''emploi'!L26","v":"Plutôt Vrai"},{"$f":"COUNTIFS('3- Article 4'!$I$12:$I$88,N17)+COUNTIFS('4- Article 5'!$I$12:$I$109,N17)","v":0}]
[null,null,null,null,null,null,null,null,null,null,"Convaincant",0,null,true,{"$f":"COUNTIFS('3- Article 4'!$I$12:$I$88,N18)+COUNTIFS('4- Article 5'!$I$12:$I$109,N18)","v":0}]
[]
[]
[null,null,null,null,null,null,null,null,null,null,null,0.75,0.75,0.75]
[]
[]
["BILAN, COMMENTAIRES,PLANS D'ACTION d'amélioration"]
["Taux de Respect des 12 SOUS-ARTICLES de la norme",null,null,null,null,"COMMENTAIRES sur les RÉSULTATS obtenus"]
[null,null,null,null,null,"Commentaires (collectifs si possible)  :"]
[null,null,null,null,null,"DÉCISIONS : Plans d'action PRIORITAIRES"]
[null,null,null,null,null,"QUOI\nObjectifs à atteindre","QUI\nen Interne ou en Externe","QUAND\nDates début et fin"]
[null,null,null,null,null,"Plan n°1 :"]
[null,null,null,null,null,"Efficacité"]
[null,null,null,null,null,"Efficience"]
[null,null,null,null,null,"Qualité pércue"]
[null,null,null,null,null,"Plan n°3 :"]
[null,null,null,null,null,"Efficacité"]
["En pointillés verts : seuil minimal paramétré pour être \"Convaincant\" (voir onglet {Mode d'Emploi})",null,null,null,null,"Efficience"]
[null,null,null,null,null,"Qualité pércue"]
[]
["TABLEAU de SYNTHÈSE des RÉSULTATS moyennés de l'évaluation qaunt au degré de réalisation des actions associées au respect de la norme ISO 31000:2009"]
[null,null,null,null,null,"Evaluations","Taux %","Niveau de Respect"]
["Art. 4",{"$f":"'5- Résultats Article 4'!B28:E28","v":"Contexte de l'organisme"},null,null,null,{"$f":"'3- Article 4'!$C$10","v":"Insuffisant"},{"$f":"'3- Article 4'!$D$10","v":0},{"$f":"IF('5- Résultats Article 4'!G41<='1- Mode d''emploi'!$F$18,'1- Mode d''emploi'!$H$18,IF(G40<='1- Mode d''emploi'!$F$19,'1- Mode d''emploi'!$H$19,IF(G40<='1- Mode d''emploi'!$F$20,'1- Mode d''emploi'!$H$20,'1- Mode d''emploi'!$H$21)))","v":"Il est nécessaire de formaliser les pratiques"},null,null,1,null,0.75]
[null,{"$f":"'3- Article 4'!$A$11","v":"4.2"},{"$f":"'3- Article 4'!$B$11","v":"Mandat et engagement"},null,null,{"$f":"'3- Article 4'!$C$11","v":"Insuffisant"},{"$f":"'3- Article 4'!$D$11","v":0},{"$f":"IF('5- Résultats Article 4'!G42<='1- Mode d''emploi'!$F$18,'1- Mode d''emploi'!$H$18,IF(G41<='1- Mode d''emploi'!$F$19,'1- Mode d''emploi'!$H$19,IF(G41<='1- Mode d''emploi'!$F$20,'1- Mode d''emploi'!$H$20,'1- Mode d''emploi'!$H$21)))","v":"Il est nécessaire de formaliser les pratiques"},null,null,1,1,0.75]
[null,{"$f":"'3- Article 4'!$A$21","v":"4.3"},{"$f":"'3- Article 4'!$B$21","v":"Conception du cadre organisationnel de management du risque"},null,null,{"$f":"'3- Article 4'!$C$21","v":"Insuffisant"},{"$f":"'3- Article 4'!$D$21","v":0},{"$f":"IF('5- Résultats Article 4'!G43<='1- Mode d''emploi'!$F$18,'1- Mode d''emploi'!$H$18,IF(G42<='1- Mode d''emploi'!$F$19,'1- Mode d''emploi'!$H$19,IF(G42<='1- Mode d''emploi'!$F$20,'1- Mode d''emploi'!$H$20,'1- Mode d''emploi'!$H$21)))","v":"Il est nécessaire de formaliser les pratiques"},null,null,1,0,0.75]
[null,"4.4","Mise en œuvre",null,null,{"$f":"'3- Article 4'!$C$69","v":"Insuffisant"},{"$f":"'3- Article 4'!$D$69","v":0},{"$f":"IF('5- Résultats Article 4'!G44<='1- Mode d''emploi'!$F$18,'1- Mode d''emploi'!$H$18,IF(G43<='1- Mode d''emploi'!$F$19,'1- Mode d''emploi'!$H$19,IF(G43<='1- Mode d''emploi'!$F$20,'1- Mode d''emploi'!$H$20,'1- Mode d''emploi'!$H$21)))","v":"Il est nécessaire de formaliser les pratiques"},null,null,1,0,0.75]
[null,"4.5","Surveillance et revue",null,null,{"$f":"'3- Article 4'!$C$79","v":"Insuffisant"},{"$f":"'3- Article 4'!$D$79","v":0},{"$f":"IF('5- Résultats Article 4'!G45<='1- Mode d''emploi'!$F$18,'1- Mode d''emploi'!$H$18,IF(G44<='1- Mode d''emploi'!$F$19,'1- Mode d''emploi'!$H$19,IF(G44<='1- Mode d''emploi'!$F$20,'1- Mode d''emploi'!$H$20,'1- Mode d''emploi'!$H$21)))","v":"Il est nécessaire de formaliser les pratiques"},null,null,1,0,0.75]
[null,"4.6","Amélioration continue",null,null,{"$f":"'3- Article 4'!$C$85","v":"Insuffisant"},{"$f":"'3- Article 4'!D85","v":0},{"$f":"IF('5- Résultats Article 4'!G46<='1- Mode d''emploi'!$F$18,'1- Mode d''emploi'!$H$18,IF(G45<='1- Mode d''emploi'!$F$19,'1- Mode d''emploi'!$H$19,IF(G45<='1- Mode d''emploi'!$F$20,'1- Mode d''emploi'!$H$20,'1- Mode d''emploi'!$H$21)))","v":"Il est nécessaire de formaliser les pratiques"},null,null,1,0,0.75]
["Art. 5","Processus",null,null,null,{"$f":"'4- Article 5'!$C$10","v":"Insuffisant"},{"$f":"'4- Article 5'!$D$10","v":0},{"$f":"IF('6- Résultats Article 5'!G47<='1- Mode d''emploi'!$F$18,'1- Mode d''emploi'!$H$18,IF(G46<='1- Mode d''emploi'!$F$19,'1- Mode d''emploi'!$H$19,IF(G46<='1- Mode d''emploi'!$F$20,'1- Mode d''emploi'!$H$20,'1- Mode d''emploi'!$H$21)))","v":"Il est nécessaire de formaliser les pratiques"},null,null,1,1,0.75]
[null,"5.1",{"$f":"'4- Article 5'!$B$11","v":"Généralités"},null,null,{"$f":"'4- Article 5'!$C$11","v":"Insuffisant"},{"$f":"'4- Article 5'!$D$11","v":0},{"$f":"IF('6- Résultats Article 5'!G48<='1- Mode d''emploi'!$F$18,'1- Mode d''emploi'!$H$18,IF(G47<='1- Mode d''emploi'!$F$19,'1- Mode d''emploi'!$H$19,IF(G47<='1- Mode d''emploi'!$F$20,'1- Mode d''emploi'!$H$20,'1- Mode d''emploi'!$H$21)))","v":"Il est nécessaire de formaliser les pratiques"},null,null,0,1,0.75]
[null,"5.2",{"$f":"'4- Article 5'!$B$15","v":"Communication et concertation"},null,null,{"$f":"'4- Article 5'!$C$15","v":"Insuffisant"},{"$f":"'4- Article 5'!$D$15","v":0},{"$f":"IF('6- Résultats Article 5'!G49<='1- Mode d''emploi'!$F$18,'1- Mode d''emploi'!$H$18,IF(G48<='1- Mode d''emploi'!$F$19,'1- Mode d''emploi'!$H$19,IF(G48<='1- Mode d''emploi'!$F$20,'1- Mode d''emploi'!$H$20,'1- Mode d''emploi'!$H$21)))","v":"Il est nécessaire de formaliser les pratiques"},null,null,0,1,0.75]
[null,"5.3",{"$f":"'4- Article 5'!$B$19","v":"Etablissement du contexte"},null,null,{"$f":"'4- Article 5'!$C$19","v":"Insuffisant"},{"$f":"'4- Article 5'!$D$19","v":0},{"$f":"IF('6- Résultats Article 5'!G50<='1- Mode d''emploi'!$F$18,'1- Mode d''emploi'!$H$18,IF(G49<='1- Mode d''emploi'!$F$19,'1- Mode d''emploi'!$H$19,IF(G49<='1- Mode d''emploi'!$F$20,'1- Mode d''emploi'!$H$20,'1- Mode d''emploi'!$H$21)))","v":"Il est nécessaire de formaliser les pratiques"},null,null,0,1,0.75]
[null,"5.4",{"$f":"'4- Article 5'!$B$35","v":"Appréciation du risque"},null,null,{"$f":"'4- Article 5'!$C$35","v":"Insuffisant"},{"$f":"'4- Article 5'!$D$35","v":0},{"$f":"IF('6- Résultats Article 5'!G51<='1- Mode d''emploi'!$F$18,'1- Mode d''emploi'!$H$18,IF(G50<='1- Mode d''emploi'!$F$19,'1- Mode d''emploi'!$H$19,IF(G50<='1- Mode d''emploi'!$F$20,'1- Mode d''emploi'!$H$20,'1- Mode d''emploi'!$H$21)))","v":"Il est nécessaire de formaliser les pratiques"},null,null,0,1,0.75]
[null,"5.5",{"$f":"'4- Article 5'!$B$62","v":"Traitement du risque"},null,null,{"$f":"'4- Article 5'!$C$62","v":"Insuffisant"},{"$f":"'4- Article 5'!$D$62","v":0},{"$f":"IF('6- Résultats Article 5'!G52<='1- Mode d''emploi'!$F$18,'1- Mode d''emploi'!$H$18,IF(G51<='1- Mode d''emploi'!$F$19,'1- Mode d''emploi'!$H$19,IF(G51<='1- Mode d''emploi'!$F$20,'1- Mode d''emploi'!$H$20,'1- Mode d''emploi'!$H$21)))","v":"Il est nécessaire de formaliser les pratiques"},null,null,0,1,0.75]
[null,"5.6",{"$f":"'4- Article 5'!$B$95","v":"Surveillance et revue"},null,null,{"$f":"'4- Article 5'!$C$95","v":"Insuffisant"},{"$f":"'4- Article 5'!$D$95","v":0},{"$f":"IF('6- Résultats Article 5'!G53<='1- Mode d''emploi'!$F$18,'1- Mode d''emploi'!$H$18,IF(G52<='1- Mode d''emploi'!$F$19,'1- Mode d''emploi'!$H$19,IF(G52<='1- Mode d''emploi'!$F$20,'1- Mode d''emploi'!$H$20,'1- Mode d''emploi'!$H$21)))","v":"Il est nécessaire de formaliser les pratiques"},null,null,0,1,0.75]
[null,"5.7",{"$f":"'4- Article 5'!$B$103","v":"Enregistrement du processus de management du risque"},null,null,{"$f":"'4- Article 5'!$C$103","v":"Insuffisant"},{"$f":"'4- Article 5'!$D$103","v":0},{"$f":"IF('6- Résultats Article 5'!G54<='1- Mode d''emploi'!$F$18,'1- Mode d''emploi'!$H$18,IF(G53<='1- Mode d''emploi'!$F$19,'1- Mode d''emploi'!$H$19,IF(G53<='1- Mode d''emploi'!$F$20,'1- Mode d''emploi'!$H$20,'1- Mode d''emploi'!$H$21)))","v":"Il est nécessaire de formaliser les pratiques"},null,null,0,1,0.75]
[null,null,null,null,null,null,null,null,null,null,null,1]